{"text_format":"1","workbook":"xlsx","n_sheets":6,"sheets":["TENDER PACK 2 LNG (Sheet A)","DC2A","TENDER PACK 2 LNG (Sheet B)","DC2B","TENDER PACK 2 LNG (Sheet C)","DC2C"],"not_rendered":{"charts":0,"images":3,"macros":1,"external_links":0,"defined_names":0,"comments":3,"pivot_tables":0},"unopened":[],"bounds":{"document_bytes":16777216,"sheet_cells":100000,"rows_first":2000,"rows_last":500,"rows_between":2000,"halvings":0,"cell_chars":16384,"cell_head_chars":4096},"cells_cut":0,"cells_raw":0,"read":"whole","date_system":"1900"}

{"sheet":"TENDER PACK 2 LNG (Sheet A)","index":0,"n_rows":246,"n_cols":18,"rows_kept":246,"cut":false,"hidden":false,"merged":[[23,16,24,16],[24,3,24,14],[25,3,25,14],[27,3,38,14],[27,16,29,16],[42,3,42,14],[2,3,6,14],[3,16,5,16],[13,3,14,14],[16,3,22,14],[17,16,20,16],[87,3,88,6],[87,7,88,14],[89,3,90,6],[89,7,90,14],[91,2,94,2],[91,3,94,6],[91,7,94,14],[43,3,47,14],[43,16,45,16],[49,3,61,14],[53,16,55,16],[82,3,83,14],[85,3,85,14],[98,3,98,6],[98,7,98,14],[99,3,100,6],[99,7,100,14],[101,3,101,6],[101,7,101,14],[95,3,95,6],[95,7,95,14],[96,3,96,6],[96,7,96,14],[97,3,97,6],[97,7,97,14],[127,2,128,2],[127,3,128,6],[127,7,128,14],[129,2,133,2],[129,3,133,6],[129,7,133,14],[102,3,102,6],[102,7,102,14],[104,3,104,14],[106,3,107,14],[122,3,123,14],[125,3,125,14],[160,3,161,14],[163,3,163,14],[165,2,167,2],[165,3,167,6],[165,7,167,12],[165,13,167,14],[134,2,137,2],[134,3,137,6],[134,7,137,14],[138,2,140,2],[138,3,140,6],[138,7,140,14],[165,16,167,16],[168,2,169,2],[168,3,169,6],[168,7,169,12],[168,13,169,14],[170,2,171,2],[170,3,171,6],[170,7,171,12],[170,13,171,14],[178,2,179,2],[178,3,179,6],[178,7,179,14],[180,2,181,2],[180,3,181,6],[180,7,181,14],[172,2,173,2],[172,3,173,6],[172,7,173,12],[172,13,173,14],[174,2,177,2],[174,3,177,6],[174,7,177,12],[174,13,177,14],[187,2,188,2],[187,3,187,14],[182,2,183,2],[182,3,183,6],[182,7,183,12],[182,13,183,14],[184,2,185,2],[184,3,185,6],[184,7,185,12],[184,13,185,14],[189,3,189,4],[189,5,189,6],[189,7,189,8],[189,9,189,10],[189,11,189,12],[189,13,189,14],[190,3,190,4],[191,3,191,4],[190,5,190,6],[191,5,191,6],[190,7,190,8],[191,7,191,8],[190,9,190,10],[191,9,191,10],[190,11,190,12],[191,11,191,12],[190,13,190,14],[191,13,191,14],[192,13,192,14],[193,13,193,14],[194,3,194,4],[195,3,195,4],[194,5,194,6],[195,5,195,6],[194,7,194,8],[195,7,195,8],[194,9,194,10],[195,9,195,10],[194,11,194,12],[195,11,195,12],[194,13,194,14],[195,13,195,14],[192,3,192,4],[193,3,193,4],[192,5,192,6],[193,5,193,6],[192,7,192,8],[193,7,193,8],[192,9,192,10],[193,9,193,10],[192,11,192,12],[193,11,193,12],[196,13,196,14],[197,13,197,14],[198,3,198,4],[199,3,199,4],[198,5,198,6],[199,5,199,6],[198,7,198,8],[199,7,199,8],[198,9,198,10],[199,9,199,10],[198,11,198,12],[199,11,199,12],[198,13,198,14],[199,13,199,14],[196,3,196,4],[197,3,197,4],[196,5,196,6],[197,5,197,6],[196,7,196,8],[197,7,197,8],[196,9,196,10],[197,9,197,10],[196,11,196,12],[197,11,197,12],[200,13,200,14],[201,11,201,12],[201,13,201,14],[215,2,217,2],[215,3,217,6],[215,7,217,12],[215,13,217,14],[203,2,204,2],[203,3,204,6],[203,7,204,12],[203,13,204,14],[205,2,206,2],[205,3,206,6],[205,7,206,12],[205,13,206,14],[200,3,200,4],[201,3,201,4],[200,5,200,6],[201,5,201,6],[200,7,200,8],[201,7,201,8],[200,9,200,10],[201,9,201,10],[200,11,200,12],[230,16,232,16],[141,3,143,6],[141,7,143,14],[141,2,143,2],[8,3,11,9],[8,11,11,14],[8,10,11,10],[227,2,228,2],[227,3,228,6],[227,7,228,12],[227,13,228,14],[229,2,232,2],[229,3,232,6],[229,7,232,14],[218,2,220,2],[218,3,220,6],[218,7,220,12],[218,13,220,14],[221,2,226,2],[221,3,226,6],[221,7,226,12],[221,13,226,14],[210,3,211,14],[213,3,213,14]]}
[]
[]
[null,null,null,"\nTENDER PACK 2\nOPERATING MARGINS - 2022/23 GAS DELIVERY TENDER (LNG)\nSHEET A - MANDATORY 12 MONTH BID\n"]
[]
[]
[]
[]
[]
[null,null,null,"This tender pack is designed for;\n• LNG Importation with Storage Facility Operators\n• Capacity Holders at LNG Importation with Storage Facilities\n",null,null,null,null,null,null,null,"Submission of this sheet is mandatory for LNG Tenderers"]
[]
[]
[]
[]
[null,null,null,"Issued 30th November 2021"]
[]
[]
[null,null,null,"Produced by National Grid Gas Transmission  \nNational Grid Gas plc\nNational Grid House\nWarwick Technology Park\nGallows Hill\nWarwick\nCV34 6DA"]
[]
[]
[]
[]
[]
[]
[]
[null,null,null,"Website:"]
[null,null,null,"https://www.nationalgrid.com/uk/gas-transmission/balancing/operating-margins-om"]
[]
[null,null,null,"PLEASE NOTE:\nThis document should be read in conjunction with the template Operating Margins agreements (found on the Operating Margins Homepage) and the document entitled \"Tender Guidance Document 2022/23\".\n\nSpecific guidance on how to complete these tender sheets is provided in Sections 7 & 8 of the Operating Margins Tender Guidance Document with specific cross-references to these tender sheets via superscript numbers adjacent to the relevant fields of information. Please also refer to Section 6 \"Requirements of the Tender Process\" in order to understand what must accompany the tender sheets as part of submission in order that assessment can proceed on any tenders received.\n\nTerms and phrases used in this document have the meanings set out or referred to in the template Operating Margins agreements and/or the Operating Margins Tender Guidance Document."]
[]
[]
[]
[]
[]
[]
[]
[]
[]
[]
[]
[null,null,null,null,null,null,null,null,null,null,null,null,null,null,null,null,"Page 1"]
[]
[]
[null,null,null,"IMPORTANT INFORMATION - PLEASE READ:"]
[null,null,null,"• All parts of 'Sheet A' must be completed by all LNG tenderers and submitted to be eligible for assessment.\n• An LNG tenderer may submit an additional proposal for a 12 month OM service in the form of 'Sheet B', whereby tranches are split differently (Part 5). This is optional. \n• An LNG tenderer may submit an additional offer for a 7 month OM service in the form of 'Sheet C'. This is optional.\n\n**Volumes in Sheets A, B and C will be treated as mutually exclusive - i.e. National Grid will only consider accepting tranche(s) from ONE of Sheet A, Sheet B, or Sheet C.**"]
[]
[]
[]
[]
[]
[null,null,null,"Completed Tenders should be submitted by 13:00 hours (GMT) on Monday 17 January 2022 via Ariba.\n\nThe completed Tender Pack should be uploaded with a filename which includes the company name and site.\nAfter uploading the Tender Pack document, terms and conditions must be accepted before submitting.\nSubmissions can be revised until the deadline."]
[]
[]
[]
[]
[]
[]
[]
[]
[]
[]
[]
[]
[]
[]
[]
[]
[]
[]
[]
[]
[]
[]
[]
[]
[]
[]
[]
[]
[]
[null,null,null,null,null,null,null,null,null,null,null,null,null,null,null,null,"Page 2"]
[]
[]
[null,null,null,"2022/23 OM GAS DELIVERY TENDER"]
[]
[]
[null,null,null,"Part 1: Tenderer Details"]
[]
[null,null,1,"Tenderer's Company Name\n(including company number)"]
[]
[null,null,2,"Company Representative, Job Title"]
[]
[null,null,3,"Company Representative Address\n(full address including postcode)"]
[]
[]
[]
[null,null,4,"Telephone Number"]
[null,null,5,"Facsimile Number"]
[null,null,6,"Email Address"]
[null,null,7,"Legal Agent Name"]
[null,null,8,"Legal Agent Address"]
[]
[null,null,9,"Shipper Short Code"]
[null,null,10,"Achilles Registration Number"]
[]
[null,null,null,"Part 2"]
[]
[null,null,null,"[See OM Tenderers Contract Response Form if such amendments are proposed]\nIf no amendments are proposed please go to Part 3"]
[]
[]
[]
[]
[]
[]
[]
[]
[]
[]
[]
[]
[null,null,null,null,null,null,null,null,null,null,null,null,null,null,null,null,"Page 3"]
[]
[]
[null,null,null,"2022/23 OM GAS DELIVERY TENDER"]
[]
[]
[null,null,null,"Part 3: Facility Details"]
[]
[null,null,11,"Facility Name\n(including company number)"]
[]
[null,null,12,"Facility Location\n(full address including postcode)"]
[]
[]
[]
[]
[null,null,13,"Service Provision Category",null,null,null,null,null,null,null,null,null,null,null,null,null,"Operator of LNG Importation with Storage"]
[null,null,null,null,null,null,null,null,null,null,null,null,null,null,null,null,null,"Capacity Holder of LNG Importation with Storage"]
[null,null,null,null,null,null,null,null,null,null,null,null,null,null,null,null,1]
[]
[null,null,14,"Execution Date For Tenderer’s Agreement With Facility Operator"]
[]
[]
[null,null,15,"Duration of Service",null,null,null,"12 Months (01/05/2022 - 30/04/2023)"]
[]
[]
[]
[]
[]
[]
[]
[]
[]
[]
[]
[]
[]
[]
[]
[null,null,null,null,null,null,null,null,null,null,null,null,null,null,null,null,"Page 4"]
[]
[]
[null,null,null,"2022/23 OM GAS DELIVERY TENDER"]
[]
[]
[null,null,null,"Part 4: Deliverability & Availability"]
[]
[null,null,16,"Maximum Delivery Rate (Tendered)\n(must be greater or equal to 500,000 kWh/hour)",null,null,null,null,null,null,null,null,null,"kWh/hour"]
[]
[]
[]
[]
[null,null,17,"Minimum Delivery Rate\n(optional) (if left blank delivery deemed at 0)",null,null,null,null,null,null,null,null,null,"kWh/hour"]
[]
[null,null,18,"Response Time",null,null,null,null,null,null,null,null,null,"Minutes"]
[]
[null,null,19,"Planned Maintenance Periods",null,null,null,null,null,null,null,null,null,"Dates"]
[]
[]
[]
[null,null,20,"Website for Service Availability / Unavailability"]
[]
[null,null,21,"Allocation Agent                                                                  (Name, Address, Tel No)"]
[]
[null,null,22,"Maximum Delivery Duration",null,null,null,null,null,null,null,null,null,"hours",null,null,2]
[]
[null,null,23,"Minimum Delivery Duration\n(Optional) (if left blank delivery deemed at 0)",null,null,null,null,null,null,null,null,null,"hours"]
[]
[]
[null,null,null,"Part 5: Charges"]
[]
[null,null,null,24,null,25,null,26,null,27,null,28,null,29]
[null,null,null,"LNG Procurement Tranche Number",null,"Service Quantity (in kWh)",null,"Estimated Necessary Delivery LNG Quantity kWh",null,"Tranche may only be accepted in full (YES / NO)",null,"Annual Service Fee (in pence per kWh per annum)",null,"Annual Service Fee (£)"]
[null,null,null,1,null,null,null,null,null,null,null,null,null,{"$f":"(F192*L192)/100","v":0}]
[null,null,null,2,null,null,null,null,null,null,null,null,null,{"$f":"(F193*L193)/100","v":0}]
[null,null,null,3,null,null,null,null,null,null,null,null,null,0]
[null,null,null,4,null,null,null,null,null,null,null,null,null,0]
[null,null,null,5,null,null,null,null,null,null,null,null,null,0]
[null,null,null,6,null,null,null,null,null,null,null,null,null,0]
[null,null,null,7,null,null,null,null,null,null,null,null,null,0]
[null,null,null,8,null,null,null,null,null,null,null,null,null,0]
[null,null,null,9,null,null,null,null,null,null,null,null,null,0]
[null,null,null,10,null,null,null,null,null,null,null,null,null,0]
[null,null,null,"Total",null,{"$f":"SUM(F192:G201)","v":0},null,{"$f":"SUM(H192:I201)","v":0},null,null,null,null,null,{"$f":"SUM(N192:O201)","v":0}]
[]
[null,null,30,"Minimum Inventory ",null,null,null,null,null,null,null,null,null,"kWh"]
[]
[null,null,31,"Facility Delivery Capacity \n(nominal)",null,null,null,null,null,null,null,null,null,"kWh/h"]
[]
[null,null,null,null,null,null,null,null,null,null,null,null,null,null,null,null,"Page 5"]
[]
[]
[null,null,null,"2022/23 OM GAS DELIVERY TENDER"]
[]
[]
[null,null,null,"Part 5: Charges (Continued)"]
[]
[null,null,32,"[NOT USED]",null,null,null,"[NOT USED]",null,null,null,null,null,"[NOT USED]"]
[]
[]
[]
[]
[]
[null,null,33,"Indexed Delivery Charge\n",null,null,null,"Indexed Delivery Charge 1",null,null,null,null,null,"See Guidance Document"]
[]
[]
[]
[]
[]
[null,null,34,"Overrun Delivery Price ",null,null,null,null,null,null,null,null,null,"p/kWh"]
[]
[null,null,35,"Additional Nomination Restrictions "]
[]
[]
[]
[]
[]
[]
[]
[]
[]
[]
[]
[]
[]
[]
[]
[null,null,null,null,null,null,null,null,null,null,null,null,null,null,null,null,"Page 6"]

{"sheet":"DC2A","index":1,"n_rows":13,"n_cols":43,"rows_kept":13,"cut":false,"hidden":true,"merged":[[0,2,1,9]]}
[null,null,"Data Collection Tab for Contracts Team"]
[]
["Tender Pack","Tender Ref","Tranche Ref","Main Ref",{"$f":"'TENDER PACK 2 LNG (Sheet A)'!D88","v":"Tenderer's Company Name\n(including company number)"},{"$f":"'TENDER PACK 2 LNG (Sheet A)'!D90","v":"Company Representative, Job Title"},{"$f":"'TENDER PACK 2 LNG (Sheet A)'!D92","v":"Company Representative Address\n(full address including postcode)"},{"$f":"'TENDER PACK 2 LNG (Sheet A)'!D96","v":"Telephone Number"},{"$f":"'TENDER PACK 2 LNG (Sheet A)'!D97","v":"Facsimile Number"},{"$f":"'TENDER PACK 2 LNG (Sheet A)'!D98","v":"Email Address"},{"$f":"'TENDER PACK 2 LNG (Sheet A)'!D99","v":"Legal Agent Name"},{"$f":"'TENDER PACK 2 LNG (Sheet A)'!D100","v":"Legal Agent Address"},{"$f":"'TENDER PACK 2 LNG (Sheet A)'!D102","v":"Shipper Short Code"},{"$f":"'TENDER PACK 2 LNG (Sheet A)'!D103","v":"Achilles Registration Number"},"Winter Only?",{"$f":"'TENDER PACK 2 LNG (Sheet A)'!D128","v":"Facility Name\n(including company number)"},{"$f":"'TENDER PACK 2 LNG (Sheet A)'!D130","v":"Facility Location\n(full address including postcode)"},{"$f":"'TENDER PACK 2 LNG (Sheet A)'!D135","v":"Service Provision Category"},{"$f":"'TENDER PACK 2 LNG (Sheet A)'!D139","v":"Execution Date For Tenderer’s Agreement With Facility Operator"},{"$f":"'TENDER PACK 2 LNG (Sheet A)'!$D$166","v":"Maximum Delivery Rate (Tendered)\n(must be greater or equal to 500,000 kWh/hour)"},{"$f":"'TENDER PACK 2 LNG (Sheet A)'!$D$169","v":0},{"$f":"'TENDER PACK 2 LNG (Sheet A)'!$D$171","v":"Minimum Delivery Rate\n(optional) (if left blank delivery deemed at 0)"},{"$f":"'TENDER PACK 2 LNG (Sheet A)'!$D$173","v":"Response Time"},{"$f":"'TENDER PACK 2 LNG (Sheet A)'!$D$175","v":"Planned Maintenance Periods"},{"$f":"'TENDER PACK 2 LNG (Sheet A)'!$D$179","v":"Website for Service Availability / Unavailability"},{"$f":"'TENDER PACK 2 LNG (Sheet A)'!$D$181","v":"Allocation Agent                                                                  (Name, Address, Tel No)"},{"$f":"'TENDER PACK 2 LNG (Sheet A)'!$D$183","v":"Maximum Delivery Duration"},{"$f":"'TENDER PACK 2 LNG (Sheet A)'!$D$185","v":"Minimum Delivery Duration\n(Optional) (if left blank delivery deemed at 0)"},null,{"$f":"'TENDER PACK 2 LNG (Sheet A)'!$D$191","v":"LNG Procurement Tranche Number"},{"$f":"'TENDER PACK 2 LNG (Sheet A)'!$F$191","v":"Service Quantity (in kWh)"},{"$f":"'TENDER PACK 2 LNG (Sheet A)'!$H$191","v":"Estimated Necessary Delivery LNG Quantity kWh"},"Tranche may only be accepted in full (YES / NO)",{"$f":"'TENDER PACK 2 LNG (Sheet A)'!$L$191","v":"Annual Service Fee (in pence per kWh per annum)"},null,{"$f":"'TENDER PACK 2 LNG (Sheet A)'!$D$204","v":"Minimum Inventory "},{"$f":"'TENDER PACK 2 LNG (Sheet A)'!$D$206","v":"Facility Delivery Capacity \n(nominal)"},{"$f":"'TENDER PACK 2 LNG (Sheet A)'!$D$216","v":"[NOT USED]"},{"$f":"'TENDER PACK 2 LNG (Sheet A)'!$D$219","v":0},{"$f":"'TENDER PACK 2 LNG (Sheet A)'!$D$222","v":"Indexed Delivery Charge\n"},{"$f":"'TENDER PACK 2 LNG (Sheet A)'!$D$225","v":0},{"$f":"'TENDER PACK 2 LNG (Sheet A)'!$D$228","v":"Overrun Delivery Price "},{"$f":"'TENDER PACK 2 LNG (Sheet A)'!#REF!","v":{"$error":"#REF!"}}]
[null,null,null,{"$f":"A4&\".\"&B4&\".\"&C4","v":".."},{"$f":"'TENDER PACK 2 LNG (Sheet A)'!$H$88","v":0},{"$f":"'TENDER PACK 2 LNG (Sheet A)'!$H$90","v":0},{"$f":"'TENDER PACK 2 LNG (Sheet A)'!$H$92","v":0},{"$f":"'TENDER PACK 2 LNG (Sheet A)'!$H$96","v":0},{"$f":"'TENDER PACK 2 LNG (Sheet A)'!$H$97","v":0},{"$f":"'TENDER PACK 2 LNG (Sheet A)'!$H$98","v":0},{"$f":"'TENDER PACK 2 LNG (Sheet A)'!$H$99","v":0},{"$f":"'TENDER PACK 2 LNG (Sheet A)'!$H$100","v":0},{"$f":"'TENDER PACK 2 LNG (Sheet A)'!$H$102","v":0},{"$f":"'TENDER PACK 2 LNG (Sheet A)'!$H$103","v":0},"No",{"$f":"'TENDER PACK 2 LNG (Sheet A)'!$H$128","v":0},{"$f":"'TENDER PACK 2 LNG (Sheet A)'!$H$130","v":0},{"$f":"IF('TENDER PACK 2 LNG (Sheet A)'!$Q$137=1,\"Please Select\",IF('TENDER PACK 2 LNG (Sheet A)'!$Q$137=3,\"Capacity Holder of LNG Importation with Storage\",IF('TENDER PACK 2 LNG (Sheet A)'!$Q$137=2,\"Operator of LNG Importation with Storage\",0)))","v":"Please Select"},{"$f":"'TENDER PACK 2 LNG (Sheet A)'!$H$139","v":0},{"$f":"'TENDER PACK 2 LNG (Sheet A)'!$H$166","v":0},{"$f":"'TENDER PACK 2 LNG (Sheet A)'!$H$169","v":0},{"$f":"'TENDER PACK 2 LNG (Sheet A)'!$H$171","v":0},{"$f":"'TENDER PACK 2 LNG (Sheet A)'!$H$173","v":0},{"$f":"'TENDER PACK 2 LNG (Sheet A)'!$H$175","v":0},{"$f":"'TENDER PACK 2 LNG (Sheet A)'!$H$179","v":0},{"$f":"'TENDER PACK 2 LNG (Sheet A)'!$H$181","v":0},{"$f":"IF('TENDER PACK 2 LNG (Sheet A)'!$Q$183=1,\"12\",IF('TENDER PACK 2 LNG (Sheet A)'!$Q$183=2,\"24\",\"UNCHECKED\"))","v":"24"},{"$f":"'TENDER PACK 2 LNG (Sheet A)'!$H$185","v":0},null,{"$f":"'TENDER PACK 2 LNG (Sheet A)'!D192","v":1},{"$f":"'TENDER PACK 2 LNG (Sheet A)'!$F192","v":0},{"$f":"'TENDER PACK 2 LNG (Sheet A)'!$H192","v":0},{"$f":"'TENDER PACK 2 LNG (Sheet A)'!$J192","v":0},{"$f":"'TENDER PACK 2 LNG (Sheet A)'!$L192","v":0},null,{"$f":"'TENDER PACK 2 LNG (Sheet A)'!$H$204","v":0},{"$f":"'TENDER PACK 2 LNG (Sheet A)'!$H$206","v":0},{"$f":"'TENDER PACK 2 LNG (Sheet A)'!$H$216","v":"[NOT USED]"},{"$f":"'TENDER PACK 2 LNG (Sheet A)'!$H$219","v":0},{"$f":"'TENDER PACK 2 LNG (Sheet A)'!$H$222","v":"Indexed Delivery Charge 1"},{"$f":"'TENDER PACK 2 LNG (Sheet A)'!$H$225","v":0},{"$f":"'TENDER PACK 2 LNG (Sheet A)'!$H$228","v":0},{"$f":"IF('TENDER PACK 2 LNG (Sheet A)'!#REF!=\"\",\"N\",\"Y\")","v":{"$error":"#REF!"}}]
[null,null,null,null,{"$f":"'TENDER PACK 2 LNG (Sheet A)'!$H$88","v":0},{"$f":"'TENDER PACK 2 LNG (Sheet A)'!$H$90","v":0},{"$f":"'TENDER PACK 2 LNG (Sheet A)'!$H$92","v":0},{"$f":"'TENDER PACK 2 LNG (Sheet A)'!$H$96","v":0},{"$f":"'TENDER PACK 2 LNG (Sheet A)'!$H$97","v":0},{"$f":"'TENDER PACK 2 LNG (Sheet A)'!$H$98","v":0},{"$f":"'TENDER PACK 2 LNG (Sheet A)'!$H$99","v":0},{"$f":"'TENDER PACK 2 LNG (Sheet A)'!$H$100","v":0},{"$f":"'TENDER PACK 2 LNG (Sheet A)'!$H$102","v":0},{"$f":"'TENDER PACK 2 LNG (Sheet A)'!$H$103","v":0},"No",{"$f":"'TENDER PACK 2 LNG (Sheet A)'!$H$128","v":0},{"$f":"'TENDER PACK 2 LNG (Sheet A)'!$H$130","v":0},{"$f":"IF('TENDER PACK 2 LNG (Sheet A)'!$Q$137=1,\"Please Select\",IF('TENDER PACK 2 LNG (Sheet A)'!$Q$137=3,\"Capacity Holder of LNG Importation with Storage\",IF('TENDER PACK 2 LNG (Sheet A)'!$Q$137=2,\"Operator of LNG Importation with Storage\",0)))","v":"Please Select"},{"$f":"'TENDER PACK 2 LNG (Sheet A)'!$H$139","v":0},{"$f":"'TENDER PACK 2 LNG (Sheet A)'!$H$166","v":0},{"$f":"'TENDER PACK 2 LNG (Sheet A)'!$H$169","v":0},{"$f":"'TENDER PACK 2 LNG (Sheet A)'!$H$171","v":0},{"$f":"'TENDER PACK 2 LNG (Sheet A)'!$H$173","v":0},{"$f":"'TENDER PACK 2 LNG (Sheet A)'!$H$175","v":0},{"$f":"'TENDER PACK 2 LNG (Sheet A)'!$H$179","v":0},{"$f":"'TENDER PACK 2 LNG (Sheet A)'!$H$181","v":0},{"$f":"IF('TENDER PACK 2 LNG (Sheet A)'!$Q$183=1,\"12\",IF('TENDER PACK 2 LNG (Sheet A)'!$Q$183=2,\"24\",\"UNCHECKED\"))","v":"24"},{"$f":"'TENDER PACK 2 LNG (Sheet A)'!$H$185","v":0},null,{"$f":"'TENDER PACK 2 LNG (Sheet A)'!D193","v":2},{"$f":"'TENDER PACK 2 LNG (Sheet A)'!$F193","v":0},{"$f":"'TENDER PACK 2 LNG (Sheet A)'!$H193","v":0},{"$f":"'TENDER PACK 2 LNG (Sheet A)'!$J193","v":0},{"$f":"'TENDER PACK 2 LNG (Sheet A)'!$L193","v":0},null,{"$f":"'TENDER PACK 2 LNG (Sheet A)'!$H$204","v":0},{"$f":"'TENDER PACK 2 LNG (Sheet A)'!$H$206","v":0},{"$f":"'TENDER PACK 2 LNG (Sheet A)'!$H$216","v":"[NOT USED]"},{"$f":"'TENDER PACK 2 LNG (Sheet A)'!$H$219","v":0},{"$f":"'TENDER PACK 2 LNG (Sheet A)'!$H$222","v":"Indexed Delivery Charge 1"},{"$f":"'TENDER PACK 2 LNG (Sheet A)'!$H$225","v":0},{"$f":"'TENDER PACK 2 LNG (Sheet A)'!$H$228","v":0},{"$f":"IF('TENDER PACK 2 LNG (Sheet A)'!#REF!=\"\",\"N\",\"Y\")","v":{"$error":"#REF!"}}]
[null,null,null,null,{"$f":"'TENDER PACK 2 LNG (Sheet A)'!$H$88","v":0},{"$f":"'TENDER PACK 2 LNG (Sheet A)'!$H$90","v":0},{"$f":"'TENDER PACK 2 LNG (Sheet A)'!$H$92","v":0},{"$f":"'TENDER PACK 2 LNG (Sheet A)'!$H$96","v":0},{"$f":"'TENDER PACK 2 LNG (Sheet A)'!$H$97","v":0},{"$f":"'TENDER PACK 2 LNG (Sheet A)'!$H$98","v":0},{"$f":"'TENDER PACK 2 LNG (Sheet A)'!$H$99","v":0},{"$f":"'TENDER PACK 2 LNG (Sheet A)'!$H$100","v":0},{"$f":"'TENDER PACK 2 LNG (Sheet A)'!$H$102","v":0},{"$f":"'TENDER PACK 2 LNG (Sheet A)'!$H$103","v":0},"No",{"$f":"'TENDER PACK 2 LNG (Sheet A)'!$H$128","v":0},{"$f":"'TENDER PACK 2 LNG (Sheet A)'!$H$130","v":0},{"$f":"IF('TENDER PACK 2 LNG (Sheet A)'!$Q$137=1,\"Please Select\",IF('TENDER PACK 2 LNG (Sheet A)'!$Q$137=3,\"Capacity Holder of LNG Importation with Storage\",IF('TENDER PACK 2 LNG (Sheet A)'!$Q$137=2,\"Operator of LNG Importation with Storage\",0)))","v":"Please Select"},{"$f":"'TENDER PACK 2 LNG (Sheet A)'!$H$139","v":0},{"$f":"'TENDER PACK 2 LNG (Sheet A)'!$H$166","v":0},{"$f":"'TENDER PACK 2 LNG (Sheet A)'!$H$169","v":0},{"$f":"'TENDER PACK 2 LNG (Sheet A)'!$H$171","v":0},{"$f":"'TENDER PACK 2 LNG (Sheet A)'!$H$173","v":0},{"$f":"'TENDER PACK 2 LNG (Sheet A)'!$H$175","v":0},{"$f":"'TENDER PACK 2 LNG (Sheet A)'!$H$179","v":0},{"$f":"'TENDER PACK 2 LNG (Sheet A)'!$H$181","v":0},{"$f":"IF('TENDER PACK 2 LNG (Sheet A)'!$Q$183=1,\"12\",IF('TENDER PACK 2 LNG (Sheet A)'!$Q$183=2,\"24\",\"UNCHECKED\"))","v":"24"},{"$f":"'TENDER PACK 2 LNG (Sheet A)'!$H$185","v":0},null,{"$f":"'TENDER PACK 2 LNG (Sheet A)'!D194","v":3},{"$f":"'TENDER PACK 2 LNG (Sheet A)'!$F194","v":0},{"$f":"'TENDER PACK 2 LNG (Sheet A)'!$H194","v":0},{"$f":"'TENDER PACK 2 LNG (Sheet A)'!$J194","v":0},{"$f":"'TENDER PACK 2 LNG (Sheet A)'!$L194","v":0},null,{"$f":"'TENDER PACK 2 LNG (Sheet A)'!$H$204","v":0},{"$f":"'TENDER PACK 2 LNG (Sheet A)'!$H$206","v":0},{"$f":"'TENDER PACK 2 LNG (Sheet A)'!$H$216","v":"[NOT USED]"},{"$f":"'TENDER PACK 2 LNG (Sheet A)'!$H$219","v":0},{"$f":"'TENDER PACK 2 LNG (Sheet A)'!$H$222","v":"Indexed Delivery Charge 1"},{"$f":"'TENDER PACK 2 LNG (Sheet A)'!$H$225","v":0},{"$f":"'TENDER PACK 2 LNG (Sheet A)'!$H$228","v":0},{"$f":"IF('TENDER PACK 2 LNG (Sheet A)'!#REF!=\"\",\"N\",\"Y\")","v":{"$error":"#REF!"}}]
[null,null,null,null,{"$f":"'TENDER PACK 2 LNG (Sheet A)'!$H$88","v":0},{"$f":"'TENDER PACK 2 LNG (Sheet A)'!$H$90","v":0},{"$f":"'TENDER PACK 2 LNG (Sheet A)'!$H$92","v":0},{"$f":"'TENDER PACK 2 LNG (Sheet A)'!$H$96","v":0},{"$f":"'TENDER PACK 2 LNG (Sheet A)'!$H$97","v":0},{"$f":"'TENDER PACK 2 LNG (Sheet A)'!$H$98","v":0},{"$f":"'TENDER PACK 2 LNG (Sheet A)'!$H$99","v":0},{"$f":"'TENDER PACK 2 LNG (Sheet A)'!$H$100","v":0},{"$f":"'TENDER PACK 2 LNG (Sheet A)'!$H$102","v":0},{"$f":"'TENDER PACK 2 LNG (Sheet A)'!$H$103","v":0},"No",{"$f":"'TENDER PACK 2 LNG (Sheet A)'!$H$128","v":0},{"$f":"'TENDER PACK 2 LNG (Sheet A)'!$H$130","v":0},{"$f":"IF('TENDER PACK 2 LNG (Sheet A)'!$Q$137=1,\"Please Select\",IF('TENDER PACK 2 LNG (Sheet A)'!$Q$137=3,\"Capacity Holder of LNG Importation with Storage\",IF('TENDER PACK 2 LNG (Sheet A)'!$Q$137=2,\"Operator of LNG Importation with Storage\",0)))","v":"Please Select"},{"$f":"'TENDER PACK 2 LNG (Sheet A)'!$H$139","v":0},{"$f":"'TENDER PACK 2 LNG (Sheet A)'!$H$166","v":0},{"$f":"'TENDER PACK 2 LNG (Sheet A)'!$H$169","v":0},{"$f":"'TENDER PACK 2 LNG (Sheet A)'!$H$171","v":0},{"$f":"'TENDER PACK 2 LNG (Sheet A)'!$H$173","v":0},{"$f":"'TENDER PACK 2 LNG (Sheet A)'!$H$175","v":0},{"$f":"'TENDER PACK 2 LNG (Sheet A)'!$H$179","v":0},{"$f":"'TENDER PACK 2 LNG (Sheet A)'!$H$181","v":0},{"$f":"IF('TENDER PACK 2 LNG (Sheet A)'!$Q$183=1,\"12\",IF('TENDER PACK 2 LNG (Sheet A)'!$Q$183=2,\"24\",\"UNCHECKED\"))","v":"24"},{"$f":"'TENDER PACK 2 LNG (Sheet A)'!$H$185","v":0},null,{"$f":"'TENDER PACK 2 LNG (Sheet A)'!D195","v":4},{"$f":"'TENDER PACK 2 LNG (Sheet A)'!$F195","v":0},{"$f":"'TENDER PACK 2 LNG (Sheet A)'!$H195","v":0},{"$f":"'TENDER PACK 2 LNG (Sheet A)'!$J195","v":0},{"$f":"'TENDER PACK 2 LNG (Sheet A)'!$L195","v":0},null,{"$f":"'TENDER PACK 2 LNG (Sheet A)'!$H$204","v":0},{"$f":"'TENDER PACK 2 LNG (Sheet A)'!$H$206","v":0},{"$f":"'TENDER PACK 2 LNG (Sheet A)'!$H$216","v":"[NOT USED]"},{"$f":"'TENDER PACK 2 LNG (Sheet A)'!$H$219","v":0},{"$f":"'TENDER PACK 2 LNG (Sheet A)'!$H$222","v":"Indexed Delivery Charge 1"},{"$f":"'TENDER PACK 2 LNG (Sheet A)'!$H$225","v":0},{"$f":"'TENDER PACK 2 LNG (Sheet A)'!$H$228","v":0},{"$f":"IF('TENDER PACK 2 LNG (Sheet A)'!#REF!=\"\",\"N\",\"Y\")","v":{"$error":"#REF!"}}]
[null,null,null,null,{"$f":"'TENDER PACK 2 LNG (Sheet A)'!$H$88","v":0},{"$f":"'TENDER PACK 2 LNG (Sheet A)'!$H$90","v":0},{"$f":"'TENDER PACK 2 LNG (Sheet A)'!$H$92","v":0},{"$f":"'TENDER PACK 2 LNG (Sheet A)'!$H$96","v":0},{"$f":"'TENDER PACK 2 LNG (Sheet A)'!$H$97","v":0},{"$f":"'TENDER PACK 2 LNG (Sheet A)'!$H$98","v":0},{"$f":"'TENDER PACK 2 LNG (Sheet A)'!$H$99","v":0},{"$f":"'TENDER PACK 2 LNG (Sheet A)'!$H$100","v":0},{"$f":"'TENDER PACK 2 LNG (Sheet A)'!$H$102","v":0},{"$f":"'TENDER PACK 2 LNG (Sheet A)'!$H$103","v":0},"No",{"$f":"'TENDER PACK 2 LNG (Sheet A)'!$H$128","v":0},{"$f":"'TENDER PACK 2 LNG (Sheet A)'!$H$130","v":0},{"$f":"IF('TENDER PACK 2 LNG (Sheet A)'!$Q$137=1,\"Please Select\",IF('TENDER PACK 2 LNG (Sheet A)'!$Q$137=3,\"Capacity Holder of LNG Importation with Storage\",IF('TENDER PACK 2 LNG (Sheet A)'!$Q$137=2,\"Operator of LNG Importation with Storage\",0)))","v":"Please Select"},{"$f":"'TENDER PACK 2 LNG (Sheet A)'!$H$139","v":0},{"$f":"'TENDER PACK 2 LNG (Sheet A)'!$H$166","v":0},{"$f":"'TENDER PACK 2 LNG (Sheet A)'!$H$169","v":0},{"$f":"'TENDER PACK 2 LNG (Sheet A)'!$H$171","v":0},{"$f":"'TENDER PACK 2 LNG (Sheet A)'!$H$173","v":0},{"$f":"'TENDER PACK 2 LNG (Sheet A)'!$H$175","v":0},{"$f":"'TENDER PACK 2 LNG (Sheet A)'!$H$179","v":0},{"$f":"'TENDER PACK 2 LNG (Sheet A)'!$H$181","v":0},{"$f":"IF('TENDER PACK 2 LNG (Sheet A)'!$Q$183=1,\"12\",IF('TENDER PACK 2 LNG (Sheet A)'!$Q$183=2,\"24\",\"UNCHECKED\"))","v":"24"},{"$f":"'TENDER PACK 2 LNG (Sheet A)'!$H$185","v":0},null,{"$f":"'TENDER PACK 2 LNG (Sheet A)'!D196","v":5},{"$f":"'TENDER PACK 2 LNG (Sheet A)'!$F196","v":0},{"$f":"'TENDER PACK 2 LNG (Sheet A)'!$H196","v":0},{"$f":"'TENDER PACK 2 LNG (Sheet A)'!$J196","v":0},{"$f":"'TENDER PACK 2 LNG (Sheet A)'!$L196","v":0},null,{"$f":"'TENDER PACK 2 LNG (Sheet A)'!$H$204","v":0},{"$f":"'TENDER PACK 2 LNG (Sheet A)'!$H$206","v":0},{"$f":"'TENDER PACK 2 LNG (Sheet A)'!$H$216","v":"[NOT USED]"},{"$f":"'TENDER PACK 2 LNG (Sheet A)'!$H$219","v":0},{"$f":"'TENDER PACK 2 LNG (Sheet A)'!$H$222","v":"Indexed Delivery Charge 1"},{"$f":"'TENDER PACK 2 LNG (Sheet A)'!$H$225","v":0},{"$f":"'TENDER PACK 2 LNG (Sheet A)'!$H$228","v":0},{"$f":"IF('TENDER PACK 2 LNG (Sheet A)'!#REF!=\"\",\"N\",\"Y\")","v":{"$error":"#REF!"}}]
[null,null,null,null,{"$f":"'TENDER PACK 2 LNG (Sheet A)'!$H$88","v":0},{"$f":"'TENDER PACK 2 LNG (Sheet A)'!$H$90","v":0},{"$f":"'TENDER PACK 2 LNG (Sheet A)'!$H$92","v":0},{"$f":"'TENDER PACK 2 LNG (Sheet A)'!$H$96","v":0},{"$f":"'TENDER PACK 2 LNG (Sheet A)'!$H$97","v":0},{"$f":"'TENDER PACK 2 LNG (Sheet A)'!$H$98","v":0},{"$f":"'TENDER PACK 2 LNG (Sheet A)'!$H$99","v":0},{"$f":"'TENDER PACK 2 LNG (Sheet A)'!$H$100","v":0},{"$f":"'TENDER PACK 2 LNG (Sheet A)'!$H$102","v":0},{"$f":"'TENDER PACK 2 LNG (Sheet A)'!$H$103","v":0},"No",{"$f":"'TENDER PACK 2 LNG (Sheet A)'!$H$128","v":0},{"$f":"'TENDER PACK 2 LNG (Sheet A)'!$H$130","v":0},{"$f":"IF('TENDER PACK 2 LNG (Sheet A)'!$Q$137=1,\"Please Select\",IF('TENDER PACK 2 LNG (Sheet A)'!$Q$137=3,\"Capacity Holder of LNG Importation with Storage\",IF('TENDER PACK 2 LNG (Sheet A)'!$Q$137=2,\"Operator of LNG Importation with Storage\",0)))","v":"Please Select"},{"$f":"'TENDER PACK 2 LNG (Sheet A)'!$H$139","v":0},{"$f":"'TENDER PACK 2 LNG (Sheet A)'!$H$166","v":0},{"$f":"'TENDER PACK 2 LNG (Sheet A)'!$H$169","v":0},{"$f":"'TENDER PACK 2 LNG (Sheet A)'!$H$171","v":0},{"$f":"'TENDER PACK 2 LNG (Sheet A)'!$H$173","v":0},{"$f":"'TENDER PACK 2 LNG (Sheet A)'!$H$175","v":0},{"$f":"'TENDER PACK 2 LNG (Sheet A)'!$H$179","v":0},{"$f":"'TENDER PACK 2 LNG (Sheet A)'!$H$181","v":0},{"$f":"IF('TENDER PACK 2 LNG (Sheet A)'!$Q$183=1,\"12\",IF('TENDER PACK 2 LNG (Sheet A)'!$Q$183=2,\"24\",\"UNCHECKED\"))","v":"24"},{"$f":"'TENDER PACK 2 LNG (Sheet A)'!$H$185","v":0},null,{"$f":"'TENDER PACK 2 LNG (Sheet A)'!D197","v":6},{"$f":"'TENDER PACK 2 LNG (Sheet A)'!$F197","v":0},{"$f":"'TENDER PACK 2 LNG (Sheet A)'!$H197","v":0},{"$f":"'TENDER PACK 2 LNG (Sheet A)'!$J197","v":0},{"$f":"'TENDER PACK 2 LNG (Sheet A)'!$L197","v":0},null,{"$f":"'TENDER PACK 2 LNG (Sheet A)'!$H$204","v":0},{"$f":"'TENDER PACK 2 LNG (Sheet A)'!$H$206","v":0},{"$f":"'TENDER PACK 2 LNG (Sheet A)'!$H$216","v":"[NOT USED]"},{"$f":"'TENDER PACK 2 LNG (Sheet A)'!$H$219","v":0},{"$f":"'TENDER PACK 2 LNG (Sheet A)'!$H$222","v":"Indexed Delivery Charge 1"},{"$f":"'TENDER PACK 2 LNG (Sheet A)'!$H$225","v":0},{"$f":"'TENDER PACK 2 LNG (Sheet A)'!$H$228","v":0},{"$f":"IF('TENDER PACK 2 LNG (Sheet A)'!#REF!=\"\",\"N\",\"Y\")","v":{"$error":"#REF!"}}]
[null,null,null,null,{"$f":"'TENDER PACK 2 LNG (Sheet A)'!$H$88","v":0},{"$f":"'TENDER PACK 2 LNG (Sheet A)'!$H$90","v":0},{"$f":"'TENDER PACK 2 LNG (Sheet A)'!$H$92","v":0},{"$f":"'TENDER PACK 2 LNG (Sheet A)'!$H$96","v":0},{"$f":"'TENDER PACK 2 LNG (Sheet A)'!$H$97","v":0},{"$f":"'TENDER PACK 2 LNG (Sheet A)'!$H$98","v":0},{"$f":"'TENDER PACK 2 LNG (Sheet A)'!$H$99","v":0},{"$f":"'TENDER PACK 2 LNG (Sheet A)'!$H$100","v":0},{"$f":"'TENDER PACK 2 LNG (Sheet A)'!$H$102","v":0},{"$f":"'TENDER PACK 2 LNG (Sheet A)'!$H$103","v":0},"No",{"$f":"'TENDER PACK 2 LNG (Sheet A)'!$H$128","v":0},{"$f":"'TENDER PACK 2 LNG (Sheet A)'!$H$130","v":0},{"$f":"IF('TENDER PACK 2 LNG (Sheet A)'!$Q$137=1,\"Please Select\",IF('TENDER PACK 2 LNG (Sheet A)'!$Q$137=3,\"Capacity Holder of LNG Importation with Storage\",IF('TENDER PACK 2 LNG (Sheet A)'!$Q$137=2,\"Operator of LNG Importation with Storage\",0)))","v":"Please Select"},{"$f":"'TENDER PACK 2 LNG (Sheet A)'!$H$139","v":0},{"$f":"'TENDER PACK 2 LNG (Sheet A)'!$H$166","v":0},{"$f":"'TENDER PACK 2 LNG (Sheet A)'!$H$169","v":0},{"$f":"'TENDER PACK 2 LNG (Sheet A)'!$H$171","v":0},{"$f":"'TENDER PACK 2 LNG (Sheet A)'!$H$173","v":0},{"$f":"'TENDER PACK 2 LNG (Sheet A)'!$H$175","v":0},{"$f":"'TENDER PACK 2 LNG (Sheet A)'!$H$179","v":0},{"$f":"'TENDER PACK 2 LNG (Sheet A)'!$H$181","v":0},{"$f":"IF('TENDER PACK 2 LNG (Sheet A)'!$Q$183=1,\"12\",IF('TENDER PACK 2 LNG (Sheet A)'!$Q$183=2,\"24\",\"UNCHECKED\"))","v":"24"},{"$f":"'TENDER PACK 2 LNG (Sheet A)'!$H$185","v":0},null,{"$f":"'TENDER PACK 2 LNG (Sheet A)'!D198","v":7},{"$f":"'TENDER PACK 2 LNG (Sheet A)'!$F198","v":0},{"$f":"'TENDER PACK 2 LNG (Sheet A)'!$H198","v":0},{"$f":"'TENDER PACK 2 LNG (Sheet A)'!$J198","v":0},{"$f":"'TENDER PACK 2 LNG (Sheet A)'!$L198","v":0},null,{"$f":"'TENDER PACK 2 LNG (Sheet A)'!$H$204","v":0},{"$f":"'TENDER PACK 2 LNG (Sheet A)'!$H$206","v":0},{"$f":"'TENDER PACK 2 LNG (Sheet A)'!$H$216","v":"[NOT USED]"},{"$f":"'TENDER PACK 2 LNG (Sheet A)'!$H$219","v":0},{"$f":"'TENDER PACK 2 LNG (Sheet A)'!$H$222","v":"Indexed Delivery Charge 1"},{"$f":"'TENDER PACK 2 LNG (Sheet A)'!$H$225","v":0},{"$f":"'TENDER PACK 2 LNG (Sheet A)'!$H$228","v":0},{"$f":"IF('TENDER PACK 2 LNG (Sheet A)'!#REF!=\"\",\"N\",\"Y\")","v":{"$error":"#REF!"}}]
[null,null,null,null,{"$f":"'TENDER PACK 2 LNG (Sheet A)'!$H$88","v":0},{"$f":"'TENDER PACK 2 LNG (Sheet A)'!$H$90","v":0},{"$f":"'TENDER PACK 2 LNG (Sheet A)'!$H$92","v":0},{"$f":"'TENDER PACK 2 LNG (Sheet A)'!$H$96","v":0},{"$f":"'TENDER PACK 2 LNG (Sheet A)'!$H$97","v":0},{"$f":"'TENDER PACK 2 LNG (Sheet A)'!$H$98","v":0},{"$f":"'TENDER PACK 2 LNG (Sheet A)'!$H$99","v":0},{"$f":"'TENDER PACK 2 LNG (Sheet A)'!$H$100","v":0},{"$f":"'TENDER PACK 2 LNG (Sheet A)'!$H$102","v":0},{"$f":"'TENDER PACK 2 LNG (Sheet A)'!$H$103","v":0},"No",{"$f":"'TENDER PACK 2 LNG (Sheet A)'!$H$128","v":0},{"$f":"'TENDER PACK 2 LNG (Sheet A)'!$H$130","v":0},{"$f":"IF('TENDER PACK 2 LNG (Sheet A)'!$Q$137=1,\"Please Select\",IF('TENDER PACK 2 LNG (Sheet A)'!$Q$137=3,\"Capacity Holder of LNG Importation with Storage\",IF('TENDER PACK 2 LNG (Sheet A)'!$Q$137=2,\"Operator of LNG Importation with Storage\",0)))","v":"Please Select"},{"$f":"'TENDER PACK 2 LNG (Sheet A)'!$H$139","v":0},{"$f":"'TENDER PACK 2 LNG (Sheet A)'!$H$166","v":0},{"$f":"'TENDER PACK 2 LNG (Sheet A)'!$H$169","v":0},{"$f":"'TENDER PACK 2 LNG (Sheet A)'!$H$171","v":0},{"$f":"'TENDER PACK 2 LNG (Sheet A)'!$H$173","v":0},{"$f":"'TENDER PACK 2 LNG (Sheet A)'!$H$175","v":0},{"$f":"'TENDER PACK 2 LNG (Sheet A)'!$H$179","v":0},{"$f":"'TENDER PACK 2 LNG (Sheet A)'!$H$181","v":0},{"$f":"IF('TENDER PACK 2 LNG (Sheet A)'!$Q$183=1,\"12\",IF('TENDER PACK 2 LNG (Sheet A)'!$Q$183=2,\"24\",\"UNCHECKED\"))","v":"24"},{"$f":"'TENDER PACK 2 LNG (Sheet A)'!$H$185","v":0},null,{"$f":"'TENDER PACK 2 LNG (Sheet A)'!D199","v":8},{"$f":"'TENDER PACK 2 LNG (Sheet A)'!$F199","v":0},{"$f":"'TENDER PACK 2 LNG (Sheet A)'!$H199","v":0},{"$f":"'TENDER PACK 2 LNG (Sheet A)'!$J199","v":0},{"$f":"'TENDER PACK 2 LNG (Sheet A)'!$L199","v":0},null,{"$f":"'TENDER PACK 2 LNG (Sheet A)'!$H$204","v":0},{"$f":"'TENDER PACK 2 LNG (Sheet A)'!$H$206","v":0},{"$f":"'TENDER PACK 2 LNG (Sheet A)'!$H$216","v":"[NOT USED]"},{"$f":"'TENDER PACK 2 LNG (Sheet A)'!$H$219","v":0},{"$f":"'TENDER PACK 2 LNG (Sheet A)'!$H$222","v":"Indexed Delivery Charge 1"},{"$f":"'TENDER PACK 2 LNG (Sheet A)'!$H$225","v":0},{"$f":"'TENDER PACK 2 LNG (Sheet A)'!$H$228","v":0},{"$f":"IF('TENDER PACK 2 LNG (Sheet A)'!#REF!=\"\",\"N\",\"Y\")","v":{"$error":"#REF!"}}]
[null,null,null,null,{"$f":"'TENDER PACK 2 LNG (Sheet A)'!$H$88","v":0},{"$f":"'TENDER PACK 2 LNG (Sheet A)'!$H$90","v":0},{"$f":"'TENDER PACK 2 LNG (Sheet A)'!$H$92","v":0},{"$f":"'TENDER PACK 2 LNG (Sheet A)'!$H$96","v":0},{"$f":"'TENDER PACK 2 LNG (Sheet A)'!$H$97","v":0},{"$f":"'TENDER PACK 2 LNG (Sheet A)'!$H$98","v":0},{"$f":"'TENDER PACK 2 LNG (Sheet A)'!$H$99","v":0},{"$f":"'TENDER PACK 2 LNG (Sheet A)'!$H$100","v":0},{"$f":"'TENDER PACK 2 LNG (Sheet A)'!$H$102","v":0},{"$f":"'TENDER PACK 2 LNG (Sheet A)'!$H$103","v":0},"No",{"$f":"'TENDER PACK 2 LNG (Sheet A)'!$H$128","v":0},{"$f":"'TENDER PACK 2 LNG (Sheet A)'!$H$130","v":0},{"$f":"IF('TENDER PACK 2 LNG (Sheet A)'!$Q$137=1,\"Please Select\",IF('TENDER PACK 2 LNG (Sheet A)'!$Q$137=3,\"Capacity Holder of LNG Importation with Storage\",IF('TENDER PACK 2 LNG (Sheet A)'!$Q$137=2,\"Operator of LNG Importation with Storage\",0)))","v":"Please Select"},{"$f":"'TENDER PACK 2 LNG (Sheet A)'!$H$139","v":0},{"$f":"'TENDER PACK 2 LNG (Sheet A)'!$H$166","v":0},{"$f":"'TENDER PACK 2 LNG (Sheet A)'!$H$169","v":0},{"$f":"'TENDER PACK 2 LNG (Sheet A)'!$H$171","v":0},{"$f":"'TENDER PACK 2 LNG (Sheet A)'!$H$173","v":0},{"$f":"'TENDER PACK 2 LNG (Sheet A)'!$H$175","v":0},{"$f":"'TENDER PACK 2 LNG (Sheet A)'!$H$179","v":0},{"$f":"'TENDER PACK 2 LNG (Sheet A)'!$H$181","v":0},{"$f":"IF('TENDER PACK 2 LNG (Sheet A)'!$Q$183=1,\"12\",IF('TENDER PACK 2 LNG (Sheet A)'!$Q$183=2,\"24\",\"UNCHECKED\"))","v":"24"},{"$f":"'TENDER PACK 2 LNG (Sheet A)'!$H$185","v":0},null,{"$f":"'TENDER PACK 2 LNG (Sheet A)'!D200","v":9},{"$f":"'TENDER PACK 2 LNG (Sheet A)'!$F200","v":0},{"$f":"'TENDER PACK 2 LNG (Sheet A)'!$H200","v":0},{"$f":"'TENDER PACK 2 LNG (Sheet A)'!$J200","v":0},{"$f":"'TENDER PACK 2 LNG (Sheet A)'!$L200","v":0},null,{"$f":"'TENDER PACK 2 LNG (Sheet A)'!$H$204","v":0},{"$f":"'TENDER PACK 2 LNG (Sheet A)'!$H$206","v":0},{"$f":"'TENDER PACK 2 LNG (Sheet A)'!$H$216","v":"[NOT USED]"},{"$f":"'TENDER PACK 2 LNG (Sheet A)'!$H$219","v":0},{"$f":"'TENDER PACK 2 LNG (Sheet A)'!$H$222","v":"Indexed Delivery Charge 1"},{"$f":"'TENDER PACK 2 LNG (Sheet A)'!$H$225","v":0},{"$f":"'TENDER PACK 2 LNG (Sheet A)'!$H$228","v":0},{"$f":"IF('TENDER PACK 2 LNG (Sheet A)'!#REF!=\"\",\"N\",\"Y\")","v":{"$error":"#REF!"}}]
[null,null,null,null,{"$f":"'TENDER PACK 2 LNG (Sheet A)'!$H$88","v":0},{"$f":"'TENDER PACK 2 LNG (Sheet A)'!$H$90","v":0},{"$f":"'TENDER PACK 2 LNG (Sheet A)'!$H$92","v":0},{"$f":"'TENDER PACK 2 LNG (Sheet A)'!$H$96","v":0},{"$f":"'TENDER PACK 2 LNG (Sheet A)'!$H$97","v":0},{"$f":"'TENDER PACK 2 LNG (Sheet A)'!$H$98","v":0},{"$f":"'TENDER PACK 2 LNG (Sheet A)'!$H$99","v":0},{"$f":"'TENDER PACK 2 LNG (Sheet A)'!$H$100","v":0},{"$f":"'TENDER PACK 2 LNG (Sheet A)'!$H$102","v":0},{"$f":"'TENDER PACK 2 LNG (Sheet A)'!$H$103","v":0},"No",{"$f":"'TENDER PACK 2 LNG (Sheet A)'!$H$128","v":0},{"$f":"'TENDER PACK 2 LNG (Sheet A)'!$H$130","v":0},{"$f":"IF('TENDER PACK 2 LNG (Sheet A)'!$Q$137=1,\"Please Select\",IF('TENDER PACK 2 LNG (Sheet A)'!$Q$137=3,\"Capacity Holder of LNG Importation with Storage\",IF('TENDER PACK 2 LNG (Sheet A)'!$Q$137=2,\"Operator of LNG Importation with Storage\",0)))","v":"Please Select"},{"$f":"'TENDER PACK 2 LNG (Sheet A)'!$H$139","v":0},{"$f":"'TENDER PACK 2 LNG (Sheet A)'!$H$166","v":0},{"$f":"'TENDER PACK 2 LNG (Sheet A)'!$H$169","v":0},{"$f":"'TENDER PACK 2 LNG (Sheet A)'!$H$171","v":0},{"$f":"'TENDER PACK 2 LNG (Sheet A)'!$H$173","v":0},{"$f":"'TENDER PACK 2 LNG (Sheet A)'!$H$175","v":0},{"$f":"'TENDER PACK 2 LNG (Sheet A)'!$H$179","v":0},{"$f":"'TENDER PACK 2 LNG (Sheet A)'!$H$181","v":0},{"$f":"IF('TENDER PACK 2 LNG (Sheet A)'!$Q$183=1,\"12\",IF('TENDER PACK 2 LNG (Sheet A)'!$Q$183=2,\"24\",\"UNCHECKED\"))","v":"24"},{"$f":"'TENDER PACK 2 LNG (Sheet A)'!$H$185","v":0},null,{"$f":"'TENDER PACK 2 LNG (Sheet A)'!D201","v":10},{"$f":"'TENDER PACK 2 LNG (Sheet A)'!$F201","v":0},{"$f":"'TENDER PACK 2 LNG (Sheet A)'!$H201","v":0},{"$f":"'TENDER PACK 2 LNG (Sheet A)'!$J201","v":0},{"$f":"'TENDER PACK 2 LNG (Sheet A)'!$L201","v":0},null,{"$f":"'TENDER PACK 2 LNG (Sheet A)'!$H$204","v":0},{"$f":"'TENDER PACK 2 LNG (Sheet A)'!$H$206","v":0},{"$f":"'TENDER PACK 2 LNG (Sheet A)'!$H$216","v":"[NOT USED]"},{"$f":"'TENDER PACK 2 LNG (Sheet A)'!$H$219","v":0},{"$f":"'TENDER PACK 2 LNG (Sheet A)'!$H$222","v":"Indexed Delivery Charge 1"},{"$f":"'TENDER PACK 2 LNG (Sheet A)'!$H$225","v":0},{"$f":"'TENDER PACK 2 LNG (Sheet A)'!$H$228","v":0},{"$f":"IF('TENDER PACK 2 LNG (Sheet A)'!#REF!=\"\",\"N\",\"Y\")","v":{"$error":"#REF!"}}]

{"sheet":"TENDER PACK 2 LNG (Sheet B)","index":2,"n_rows":246,"n_cols":18,"rows_kept":246,"cut":false,"hidden":false,"merged":[[200,3,200,4],[200,5,200,6],[200,7,200,8],[200,9,200,10],[200,11,200,12],[200,13,200,14],[201,3,201,4],[201,5,201,6],[201,7,201,8],[201,9,201,10],[201,11,201,12],[201,13,201,14],[198,7,198,8],[198,9,198,10],[198,11,198,12],[198,13,198,14],[199,3,199,4],[199,5,199,6],[199,7,199,8],[199,9,199,10],[199,11,199,12],[199,13,199,14],[198,3,198,4],[198,5,198,6],[196,3,196,4],[196,5,196,6],[196,7,196,8],[196,9,196,10],[196,11,196,12],[196,13,196,14],[197,3,197,4],[197,5,197,6],[197,7,197,8],[197,9,197,10],[197,11,197,12],[197,13,197,14],[190,3,190,4],[190,5,190,6],[190,7,190,8],[190,9,190,10],[190,11,190,12],[190,13,190,14],[191,11,191,12],[191,13,191,14],[192,3,192,4],[192,5,192,6],[192,7,192,8],[192,9,192,10],[192,11,192,12],[192,13,192,14],[91,2,94,2],[127,2,128,2],[165,2,167,2],[174,2,177,2],[96,3,96,6],[96,7,96,14],[97,3,97,6],[97,7,97,14],[102,3,102,6],[102,7,102,14],[104,3,104,14],[106,3,107,14],[122,3,123,14],[125,3,125,14],[98,3,98,6],[98,7,98,14],[99,3,100,6],[99,7,100,14],[101,3,101,6],[101,7,101,14],[129,2,133,2],[134,2,137,2],[138,2,140,2],[160,3,161,14],[82,3,83,14],[85,3,85,14],[95,3,95,6],[95,7,95,14],[87,3,88,6],[87,7,88,14],[89,3,90,6],[89,7,90,14],[91,3,94,6],[91,7,94,14],[3,16,5,16],[13,3,14,14],[16,3,22,14],[17,16,20,16],[43,3,47,14],[43,16,45,16],[49,3,61,14],[53,16,55,16],[23,16,24,16],[24,3,24,14],[25,3,25,14],[27,3,38,14],[27,16,29,16],[42,3,42,14],[2,3,6,14],[163,3,163,14],[165,3,167,6],[165,7,167,12],[165,13,167,14],[127,3,128,6],[127,7,128,14],[129,3,133,6],[129,7,133,14],[134,3,137,6],[134,7,137,14],[138,3,140,6],[138,7,140,14],[182,13,183,14],[187,3,187,14],[189,3,189,4],[189,5,189,6],[187,2,188,2],[178,3,179,6],[178,7,179,14],[165,16,167,16],[168,2,169,2],[168,3,169,6],[168,7,169,12],[168,13,169,14],[170,2,171,2],[170,3,171,6],[170,7,171,12],[170,13,171,14],[189,7,189,8],[189,9,189,10],[189,11,189,12],[189,13,189,14],[194,5,194,6],[194,7,194,8],[194,9,194,10],[194,11,194,12],[194,13,194,14],[195,5,195,6],[195,7,195,8],[191,3,191,4],[191,5,191,6],[191,7,191,8],[191,9,191,10],[194,3,194,4],[195,3,195,4],[195,9,195,10],[193,3,193,4],[193,5,193,6],[193,7,193,8],[193,9,193,10],[193,11,193,12],[193,13,193,14],[195,11,195,12],[195,13,195,14],[227,2,228,2],[221,2,226,2],[229,2,232,2],[230,16,232,16],[215,3,217,6],[215,7,217,12],[215,13,217,14],[218,3,220,6],[218,7,220,12],[218,13,220,14],[229,3,232,6],[229,7,232,14],[227,3,228,6],[227,7,228,12],[227,13,228,14],[221,13,226,14],[221,7,226,12],[221,3,226,6],[215,2,217,2],[218,2,220,2],[203,3,204,6],[203,7,204,12],[203,13,204,14],[210,3,211,14],[213,3,213,14],[203,2,204,2],[205,7,206,12],[205,13,206,14],[205,2,206,2],[205,3,206,6],[141,2,143,2],[141,3,143,6],[141,7,143,14],[8,3,11,9],[8,10,11,10],[8,11,11,14],[184,3,185,6],[184,7,185,12],[184,13,185,14],[184,2,185,2],[178,2,179,2],[172,2,173,2],[172,3,173,6],[172,7,173,12],[172,13,173,14],[174,3,177,6],[174,7,177,12],[174,13,177,14],[180,2,181,2],[180,3,181,6],[180,7,181,14],[182,2,183,2],[182,3,183,6],[182,7,183,12]]}
[]
[]
[null,null,null,"\nTENDER PACK 2\nOPERATING MARGINS - 2022/23 GAS DELIVERY TENDER (LNG)\nSHEET B - OPTIONAL 12 MONTH ALTERNATIVE BID\n"]
[]
[]
[]
[]
[]
[null,null,null,"This tender pack is designed for;\n• LNG Importation with Storage Facility Operators\n• Capacity Holders at LNG Importation with Storage Facilities\n",null,null,null,null,null,null,null,"Submission of this sheet is optional for LNG Tenderers"]
[]
[]
[]
[]
[null,null,null,"Issued 30th November 2021"]
[]
[]
[null,null,null,"Produced by National Grid Gas Transmission  \nNational Grid Gas plc\nNational Grid House\nWarwick Technology Park\nGallows Hill\nWarwick\nCV34 6DA"]
[]
[]
[]
[]
[]
[]
[]
[null,null,null,"Website:"]
[null,null,null,"https://www.nationalgrid.com/uk/gas-transmission/balancing/operating-margins-om"]
[]
[null,null,null,"PLEASE NOTE:\nThis document should be read in conjunction with the template Operating Margins agreements (found on the Operating Margins Homepage) and the document entitled \"Tender Guidance Document 2022/23\".\n\nSpecific guidance on how to complete these tender sheets is provided in Sections 7 & 8 of the Operating Margins Tender Guidance Document with specific cross-references to these tender sheets via superscript numbers adjacent to the relevant fields of information. Please also refer to Section 6 \"Requirements of the Tender Process\" in order to understand what must accompany the tender sheets as part of submission in order that assessment can proceed on any tenders received.\n\nTerms and phrases used in this document have the meanings set out or referred to in the template Operating Margins agreements and/or the Operating Margins Tender Guidance Document."]
[]
[]
[]
[]
[]
[]
[]
[]
[]
[]
[]
[null,null,null,null,null,null,null,null,null,null,null,null,null,null,null,null,"Page 1"]
[]
[]
[null,null,null,"IMPORTANT INFORMATION - PLEASE READ:"]
[null,null,null,"• All parts of 'Sheet A' must be completed by all LNG tenderers and submitted to be eligible for assessment.\n• An LNG tenderer may submit an additional proposal for a 12 month OM service in the form of 'Sheet B', whereby tranches are split differently (Part 5). This is optional. \n• An LNG tenderer may submit an additional offer for a 7 month OM service in the form of 'Sheet C'. This is optional.\n\n**Volumes in Sheets A, B and C will be treated as mutually exclusive - i.e. National Grid will only consider accepting tranche(s) from ONE of Sheet A, Sheet B, or Sheet C.**"]
[]
[]
[]
[]
[]
[null,null,null,"Completed Tenders should be submitted by 13:00 hours (GMT) on Monday 17 January 2022 via Ariba.\n\nThe completed Tender Pack should be uploaded with a filename which includes the company name and site.\nAfter uploading the Tender Pack document, terms and conditions must be accepted before submitting.\nSubmissions can be revised until the deadline."]
[]
[]
[]
[]
[]
[]
[]
[]
[]
[]
[]
[]
[]
[]
[]
[]
[]
[]
[]
[]
[]
[]
[]
[]
[]
[]
[]
[]
[]
[null,null,null,null,null,null,null,null,null,null,null,null,null,null,null,null,"Page 2"]
[]
[]
[null,null,null,"2022/23 OM GAS DELIVERY TENDER"]
[]
[]
[null,null,null,"Part 1: Tenderer Details"]
[]
[null,null,1,"Tenderer's Company Name\n(including company number)"]
[]
[null,null,2,"Company Representative, Job Title"]
[]
[null,null,3,"Company Representative Address\n(full address including postcode)"]
[]
[]
[]
[null,null,4,"Telephone Number"]
[null,null,5,"Facsimile Number"]
[null,null,6,"Email Address"]
[null,null,7,"Legal Agent Name"]
[null,null,8,"Legal Agent Address"]
[]
[null,null,9,"Shipper Short Code"]
[null,null,10,"Achilles Registration Number"]
[]
[null,null,null,"Part 2"]
[]
[null,null,null,"[See OM Tenderers Contract Response Form if such amendments are proposed]\nIf no amendments are proposed please go to Part 3"]
[]
[]
[]
[]
[]
[]
[]
[]
[]
[]
[]
[]
[null,null,null,null,null,null,null,null,null,null,null,null,null,null,null,null,"Page 3"]
[]
[]
[null,null,null,"2022/23 OM GAS DELIVERY TENDER"]
[]
[]
[null,null,null,"Part 3: Facility Details"]
[]
[null,null,11,"Facility Name\n(including company number)"]
[]
[null,null,12,"Facility Location\n(full address including postcode)"]
[]
[]
[]
[]
[null,null,13,"Service Provision Category",null,null,null,null,null,null,null,null,null,null,null,null,null,"Operator of LNG Importation with Storage"]
[null,null,null,null,null,null,null,null,null,null,null,null,null,null,null,null,null,"Capacity Holder of LNG Importation with Storage"]
[null,null,null,null,null,null,null,null,null,null,null,null,null,null,null,null,1]
[]
[null,null,14,"Execution Date For Tenderer’s Agreement With Facility Operator"]
[]
[]
[null,null,15,"Duration of Service",null,null,null,"12 Months (01/05/2022 - 30/04/2023)"]
[]
[]
[]
[]
[]
[]
[]
[]
[]
[]
[]
[]
[]
[]
[]
[null,null,null,null,null,null,null,null,null,null,null,null,null,null,null,null,"Page 4"]
[]
[]
[null,null,null,"2022/23 OM GAS DELIVERY TENDER"]
[]
[]
[null,null,null,"Part 4: Deliverability & Availability"]
[]
[null,null,16,"Maximum Delivery Rate (Tendered)\n(must be greater or equal to 500,000 kWh/hour)",null,null,null,null,null,null,null,null,null,"kWh/hour"]
[]
[]
[]
[]
[null,null,17,"Minimum Delivery Rate\n(optional) (if left blank delivery deemed at 0)",null,null,null,null,null,null,null,null,null,"kWh/hour"]
[]
[null,null,18,"Response Time",null,null,null,null,null,null,null,null,null,"Minutes"]
[]
[null,null,19,"Planned Maintenance Periods",null,null,null,null,null,null,null,null,null,"Dates"]
[]
[]
[]
[null,null,20,"Website for Service Availability / Unavailability"]
[]
[null,null,21,"Allocation Agent                                                                  (Name, Address, Tel No)"]
[]
[null,null,22,"Maximum Delivery Duration",null,null,null,null,null,null,null,null,null,"hours",null,null,2]
[]
[null,null,23,"Minimum Delivery Duration\n(Optional) (if left blank delivery deemed at 0)",null,null,null,null,null,null,null,null,null,"hours"]
[]
[]
[null,null,null,"Part 5: Charges"]
[]
[null,null,null,24,null,25,null,26,null,27,null,28,null,29]
[null,null,null,"LNG Procurement Tranche Number",null,"Service Quantity (in kWh)",null,"Estimated Necessary Delivery LNG Quantity kWh",null,"Tranche may only be accepted in full (YES / NO)",null,"Annual Service Fee (in pence per kWh per annum)",null,"Annual Service Fee (£)"]
[null,null,null,1,null,null,null,null,null,null,null,null,null,{"$f":"(F192*L192)/100","v":0}]
[null,null,null,2,null,null,null,null,null,null,null,null,null,{"$f":"(F193*L193)/100","v":0}]
[null,null,null,3,null,null,null,null,null,null,null,null,null,0]
[null,null,null,4,null,null,null,null,null,null,null,null,null,0]
[null,null,null,5,null,null,null,null,null,null,null,null,null,0]
[null,null,null,6,null,null,null,null,null,null,null,null,null,0]
[null,null,null,7,null,null,null,null,null,null,null,null,null,0]
[null,null,null,8,null,null,null,null,null,null,null,null,null,0]
[null,null,null,9,null,null,null,null,null,null,null,null,null,0]
[null,null,null,10,null,null,null,null,null,null,null,null,null,0]
[null,null,null,"Total",null,{"$f":"SUM(F192:G201)","v":0},null,{"$f":"SUM(H192:I201)","v":0},null,null,null,null,null,{"$f":"SUM(N192:O201)","v":0}]
[]
[null,null,30,"Minimum Inventory ",null,null,null,null,null,null,null,null,null,"kWh"]
[]
[null,null,31,"Facility Delivery Capacity \n(nominal)",null,null,null,null,null,null,null,null,null,"kWh/h"]
[]
[null,null,null,null,null,null,null,null,null,null,null,null,null,null,null,null,"Page 5"]
[]
[]
[null,null,null,"2022/23 OM GAS DELIVERY TENDER"]
[]
[]
[null,null,null,"Part 5: Charges (Continued)"]
[]
[null,null,32,"[NOT USED]",null,null,null,"[NOT USED]",null,null,null,null,null,"[NOT USED]"]
[]
[]
[]
[]
[]
[null,null,33,"Indexed Delivery Charge\n",null,null,null,"Indexed Delivery Charge 1",null,null,null,null,null,"See Guidance Document"]
[]
[]
[]
[]
[]
[null,null,34,"Overrun Delivery Price ",null,null,null,null,null,null,null,null,null,"p/kWh"]
[]
[null,null,35,"Additional Nomination Restrictions "]
[]
[]
[]
[]
[]
[]
[]
[]
[]
[]
[]
[]
[]
[]
[]
[null,null,null,null,null,null,null,null,null,null,null,null,null,null,null,null,"Page 6"]

{"sheet":"DC2B","index":3,"n_rows":13,"n_cols":43,"rows_kept":13,"cut":false,"hidden":true,"merged":[[0,2,1,9]]}
[null,null,"Data Collection Tab for Contracts Team"]
[]
["Tender Pack","Tender Ref","Tranche Ref","Main Ref",{"$f":"'TENDER PACK 2 LNG (Sheet B)'!D88","v":"Tenderer's Company Name\n(including company number)"},{"$f":"'TENDER PACK 2 LNG (Sheet B)'!D90","v":"Company Representative, Job Title"},{"$f":"'TENDER PACK 2 LNG (Sheet B)'!D92","v":"Company Representative Address\n(full address including postcode)"},{"$f":"'TENDER PACK 2 LNG (Sheet B)'!D96","v":"Telephone Number"},{"$f":"'TENDER PACK 2 LNG (Sheet B)'!D97","v":"Facsimile Number"},{"$f":"'TENDER PACK 2 LNG (Sheet B)'!D98","v":"Email Address"},{"$f":"'TENDER PACK 2 LNG (Sheet B)'!D99","v":"Legal Agent Name"},{"$f":"'TENDER PACK 2 LNG (Sheet B)'!D100","v":"Legal Agent Address"},{"$f":"'TENDER PACK 2 LNG (Sheet B)'!D102","v":"Shipper Short Code"},{"$f":"'TENDER PACK 2 LNG (Sheet B)'!D103","v":"Achilles Registration Number"},"Winter Only?",{"$f":"'TENDER PACK 2 LNG (Sheet B)'!D128","v":"Facility Name\n(including company number)"},{"$f":"'TENDER PACK 2 LNG (Sheet B)'!D130","v":"Facility Location\n(full address including postcode)"},{"$f":"'TENDER PACK 2 LNG (Sheet B)'!D135","v":"Service Provision Category"},{"$f":"'TENDER PACK 2 LNG (Sheet B)'!D139","v":"Execution Date For Tenderer’s Agreement With Facility Operator"},{"$f":"'TENDER PACK 2 LNG (Sheet B)'!$D$166","v":"Maximum Delivery Rate (Tendered)\n(must be greater or equal to 500,000 kWh/hour)"},{"$f":"'TENDER PACK 2 LNG (Sheet B)'!$D$169","v":0},{"$f":"'TENDER PACK 2 LNG (Sheet B)'!$D$171","v":"Minimum Delivery Rate\n(optional) (if left blank delivery deemed at 0)"},{"$f":"'TENDER PACK 2 LNG (Sheet B)'!$D$173","v":"Response Time"},{"$f":"'TENDER PACK 2 LNG (Sheet B)'!$D$175","v":"Planned Maintenance Periods"},{"$f":"'TENDER PACK 2 LNG (Sheet B)'!$D$179","v":"Website for Service Availability / Unavailability"},{"$f":"'TENDER PACK 2 LNG (Sheet B)'!$D$181","v":"Allocation Agent                                                                  (Name, Address, Tel No)"},{"$f":"'TENDER PACK 2 LNG (Sheet B)'!$D$183","v":"Maximum Delivery Duration"},{"$f":"'TENDER PACK 2 LNG (Sheet B)'!$D$185","v":"Minimum Delivery Duration\n(Optional) (if left blank delivery deemed at 0)"},null,{"$f":"'TENDER PACK 2 LNG (Sheet B)'!$D$191","v":"LNG Procurement Tranche Number"},{"$f":"'TENDER PACK 2 LNG (Sheet B)'!$F$191","v":"Service Quantity (in kWh)"},{"$f":"'TENDER PACK 2 LNG (Sheet B)'!$H$191","v":"Estimated Necessary Delivery LNG Quantity kWh"},"Tranche may only be accepted in full (YES / NO)",{"$f":"'TENDER PACK 2 LNG (Sheet B)'!$L$191","v":"Annual Service Fee (in pence per kWh per annum)"},null,{"$f":"'TENDER PACK 2 LNG (Sheet B)'!$D$204","v":"Minimum Inventory "},{"$f":"'TENDER PACK 2 LNG (Sheet B)'!$D$206","v":"Facility Delivery Capacity \n(nominal)"},{"$f":"'TENDER PACK 2 LNG (Sheet B)'!$D$216","v":"[NOT USED]"},{"$f":"'TENDER PACK 2 LNG (Sheet B)'!$D$219","v":0},{"$f":"'TENDER PACK 2 LNG (Sheet B)'!$D$222","v":"Indexed Delivery Charge\n"},{"$f":"'TENDER PACK 2 LNG (Sheet B)'!$D$225","v":0},{"$f":"'TENDER PACK 2 LNG (Sheet B)'!$D$228","v":"Overrun Delivery Price "},{"$f":"'TENDER PACK 2 LNG (Sheet B)'!#REF!","v":{"$error":"#REF!"}}]
[null,null,null,{"$f":"A4&\".\"&B4&\".\"&C4","v":".."},{"$f":"'TENDER PACK 2 LNG (Sheet B)'!$H$88","v":0},{"$f":"'TENDER PACK 2 LNG (Sheet B)'!$H$90","v":0},{"$f":"'TENDER PACK 2 LNG (Sheet B)'!$H$92","v":0},{"$f":"'TENDER PACK 2 LNG (Sheet B)'!$H$96","v":0},{"$f":"'TENDER PACK 2 LNG (Sheet B)'!$H$97","v":0},{"$f":"'TENDER PACK 2 LNG (Sheet B)'!$H$98","v":0},{"$f":"'TENDER PACK 2 LNG (Sheet B)'!$H$99","v":0},{"$f":"'TENDER PACK 2 LNG (Sheet B)'!$H$100","v":0},{"$f":"'TENDER PACK 2 LNG (Sheet B)'!$H$102","v":0},{"$f":"'TENDER PACK 2 LNG (Sheet B)'!$H$103","v":0},"No",{"$f":"'TENDER PACK 2 LNG (Sheet B)'!$H$128","v":0},{"$f":"'TENDER PACK 2 LNG (Sheet B)'!$H$130","v":0},{"$f":"IF('TENDER PACK 2 LNG (Sheet B)'!$Q$137=1,\"Please Select\",IF('TENDER PACK 2 LNG (Sheet B)'!$Q$137=3,\"Capacity Holder of LNG Importation with Storage\",IF('TENDER PACK 2 LNG (Sheet B)'!$Q$137=2,\"Operator of LNG Importation with Storage\",0)))","v":"Please Select"},{"$f":"'TENDER PACK 2 LNG (Sheet B)'!$H$139","v":0},{"$f":"'TENDER PACK 2 LNG (Sheet B)'!$H$166","v":0},{"$f":"'TENDER PACK 2 LNG (Sheet B)'!$H$169","v":0},{"$f":"'TENDER PACK 2 LNG (Sheet B)'!$H$171","v":0},{"$f":"'TENDER PACK 2 LNG (Sheet B)'!$H$173","v":0},{"$f":"'TENDER PACK 2 LNG (Sheet B)'!$H$175","v":0},{"$f":"'TENDER PACK 2 LNG (Sheet B)'!$H$179","v":0},{"$f":"'TENDER PACK 2 LNG (Sheet B)'!$H$181","v":0},{"$f":"IF('TENDER PACK 2 LNG (Sheet B)'!$Q$183=1,\"12\",IF('TENDER PACK 2 LNG (Sheet B)'!$Q$183=2,\"24\",\"UNCHECKED\"))","v":"24"},{"$f":"'TENDER PACK 2 LNG (Sheet B)'!$H$185","v":0},null,{"$f":"'TENDER PACK 2 LNG (Sheet B)'!D192","v":1},{"$f":"'TENDER PACK 2 LNG (Sheet B)'!$F192","v":0},{"$f":"'TENDER PACK 2 LNG (Sheet B)'!$H192","v":0},{"$f":"'TENDER PACK 2 LNG (Sheet B)'!$J192","v":0},{"$f":"'TENDER PACK 2 LNG (Sheet B)'!$L192","v":0},null,{"$f":"'TENDER PACK 2 LNG (Sheet B)'!$H$204","v":0},{"$f":"'TENDER PACK 2 LNG (Sheet B)'!$H$206","v":0},{"$f":"'TENDER PACK 2 LNG (Sheet B)'!$H$216","v":"[NOT USED]"},{"$f":"'TENDER PACK 2 LNG (Sheet B)'!$H$219","v":0},{"$f":"'TENDER PACK 2 LNG (Sheet B)'!$H$222","v":"Indexed Delivery Charge 1"},{"$f":"'TENDER PACK 2 LNG (Sheet B)'!$H$225","v":0},{"$f":"'TENDER PACK 2 LNG (Sheet B)'!$H$228","v":0},{"$f":"IF('TENDER PACK 2 LNG (Sheet B)'!#REF!=\"\",\"N\",\"Y\")","v":{"$error":"#REF!"}}]
[null,null,null,null,{"$f":"'TENDER PACK 2 LNG (Sheet B)'!$H$88","v":0},{"$f":"'TENDER PACK 2 LNG (Sheet B)'!$H$90","v":0},{"$f":"'TENDER PACK 2 LNG (Sheet B)'!$H$92","v":0},{"$f":"'TENDER PACK 2 LNG (Sheet B)'!$H$96","v":0},{"$f":"'TENDER PACK 2 LNG (Sheet B)'!$H$97","v":0},{"$f":"'TENDER PACK 2 LNG (Sheet B)'!$H$98","v":0},{"$f":"'TENDER PACK 2 LNG (Sheet B)'!$H$99","v":0},{"$f":"'TENDER PACK 2 LNG (Sheet B)'!$H$100","v":0},{"$f":"'TENDER PACK 2 LNG (Sheet B)'!$H$102","v":0},{"$f":"'TENDER PACK 2 LNG (Sheet B)'!$H$103","v":0},"No",{"$f":"'TENDER PACK 2 LNG (Sheet B)'!$H$128","v":0},{"$f":"'TENDER PACK 2 LNG (Sheet B)'!$H$130","v":0},{"$f":"IF('TENDER PACK 2 LNG (Sheet B)'!$Q$137=1,\"Please Select\",IF('TENDER PACK 2 LNG (Sheet B)'!$Q$137=3,\"Capacity Holder of LNG Importation with Storage\",IF('TENDER PACK 2 LNG (Sheet B)'!$Q$137=2,\"Operator of LNG Importation with Storage\",0)))","v":"Please Select"},{"$f":"'TENDER PACK 2 LNG (Sheet B)'!$H$139","v":0},{"$f":"'TENDER PACK 2 LNG (Sheet B)'!$H$166","v":0},{"$f":"'TENDER PACK 2 LNG (Sheet B)'!$H$169","v":0},{"$f":"'TENDER PACK 2 LNG (Sheet B)'!$H$171","v":0},{"$f":"'TENDER PACK 2 LNG (Sheet B)'!$H$173","v":0},{"$f":"'TENDER PACK 2 LNG (Sheet B)'!$H$175","v":0},{"$f":"'TENDER PACK 2 LNG (Sheet B)'!$H$179","v":0},{"$f":"'TENDER PACK 2 LNG (Sheet B)'!$H$181","v":0},{"$f":"IF('TENDER PACK 2 LNG (Sheet B)'!$Q$183=1,\"12\",IF('TENDER PACK 2 LNG (Sheet B)'!$Q$183=2,\"24\",\"UNCHECKED\"))","v":"24"},{"$f":"'TENDER PACK 2 LNG (Sheet B)'!$H$185","v":0},null,{"$f":"'TENDER PACK 2 LNG (Sheet B)'!D193","v":2},{"$f":"'TENDER PACK 2 LNG (Sheet B)'!$F193","v":0},{"$f":"'TENDER PACK 2 LNG (Sheet B)'!$H193","v":0},{"$f":"'TENDER PACK 2 LNG (Sheet B)'!$J193","v":0},{"$f":"'TENDER PACK 2 LNG (Sheet B)'!$L193","v":0},null,{"$f":"'TENDER PACK 2 LNG (Sheet B)'!$H$204","v":0},{"$f":"'TENDER PACK 2 LNG (Sheet B)'!$H$206","v":0},{"$f":"'TENDER PACK 2 LNG (Sheet B)'!$H$216","v":"[NOT USED]"},{"$f":"'TENDER PACK 2 LNG (Sheet B)'!$H$219","v":0},{"$f":"'TENDER PACK 2 LNG (Sheet B)'!$H$222","v":"Indexed Delivery Charge 1"},{"$f":"'TENDER PACK 2 LNG (Sheet B)'!$H$225","v":0},{"$f":"'TENDER PACK 2 LNG (Sheet B)'!$H$228","v":0},{"$f":"IF('TENDER PACK 2 LNG (Sheet B)'!#REF!=\"\",\"N\",\"Y\")","v":{"$error":"#REF!"}}]
[null,null,null,null,{"$f":"'TENDER PACK 2 LNG (Sheet B)'!$H$88","v":0},{"$f":"'TENDER PACK 2 LNG (Sheet B)'!$H$90","v":0},{"$f":"'TENDER PACK 2 LNG (Sheet B)'!$H$92","v":0},{"$f":"'TENDER PACK 2 LNG (Sheet B)'!$H$96","v":0},{"$f":"'TENDER PACK 2 LNG (Sheet B)'!$H$97","v":0},{"$f":"'TENDER PACK 2 LNG (Sheet B)'!$H$98","v":0},{"$f":"'TENDER PACK 2 LNG (Sheet B)'!$H$99","v":0},{"$f":"'TENDER PACK 2 LNG (Sheet B)'!$H$100","v":0},{"$f":"'TENDER PACK 2 LNG (Sheet B)'!$H$102","v":0},{"$f":"'TENDER PACK 2 LNG (Sheet B)'!$H$103","v":0},"No",{"$f":"'TENDER PACK 2 LNG (Sheet B)'!$H$128","v":0},{"$f":"'TENDER PACK 2 LNG (Sheet B)'!$H$130","v":0},{"$f":"IF('TENDER PACK 2 LNG (Sheet B)'!$Q$137=1,\"Please Select\",IF('TENDER PACK 2 LNG (Sheet B)'!$Q$137=3,\"Capacity Holder of LNG Importation with Storage\",IF('TENDER PACK 2 LNG (Sheet B)'!$Q$137=2,\"Operator of LNG Importation with Storage\",0)))","v":"Please Select"},{"$f":"'TENDER PACK 2 LNG (Sheet B)'!$H$139","v":0},{"$f":"'TENDER PACK 2 LNG (Sheet B)'!$H$166","v":0},{"$f":"'TENDER PACK 2 LNG (Sheet B)'!$H$169","v":0},{"$f":"'TENDER PACK 2 LNG (Sheet B)'!$H$171","v":0},{"$f":"'TENDER PACK 2 LNG (Sheet B)'!$H$173","v":0},{"$f":"'TENDER PACK 2 LNG (Sheet B)'!$H$175","v":0},{"$f":"'TENDER PACK 2 LNG (Sheet B)'!$H$179","v":0},{"$f":"'TENDER PACK 2 LNG (Sheet B)'!$H$181","v":0},{"$f":"IF('TENDER PACK 2 LNG (Sheet B)'!$Q$183=1,\"12\",IF('TENDER PACK 2 LNG (Sheet B)'!$Q$183=2,\"24\",\"UNCHECKED\"))","v":"24"},{"$f":"'TENDER PACK 2 LNG (Sheet B)'!$H$185","v":0},null,{"$f":"'TENDER PACK 2 LNG (Sheet B)'!D194","v":3},{"$f":"'TENDER PACK 2 LNG (Sheet B)'!$F194","v":0},{"$f":"'TENDER PACK 2 LNG (Sheet B)'!$H194","v":0},{"$f":"'TENDER PACK 2 LNG (Sheet B)'!$J194","v":0},{"$f":"'TENDER PACK 2 LNG (Sheet B)'!$L194","v":0},null,{"$f":"'TENDER PACK 2 LNG (Sheet B)'!$H$204","v":0},{"$f":"'TENDER PACK 2 LNG (Sheet B)'!$H$206","v":0},{"$f":"'TENDER PACK 2 LNG (Sheet B)'!$H$216","v":"[NOT USED]"},{"$f":"'TENDER PACK 2 LNG (Sheet B)'!$H$219","v":0},{"$f":"'TENDER PACK 2 LNG (Sheet B)'!$H$222","v":"Indexed Delivery Charge 1"},{"$f":"'TENDER PACK 2 LNG (Sheet B)'!$H$225","v":0},{"$f":"'TENDER PACK 2 LNG (Sheet B)'!$H$228","v":0},{"$f":"IF('TENDER PACK 2 LNG (Sheet B)'!#REF!=\"\",\"N\",\"Y\")","v":{"$error":"#REF!"}}]
[null,null,null,null,{"$f":"'TENDER PACK 2 LNG (Sheet B)'!$H$88","v":0},{"$f":"'TENDER PACK 2 LNG (Sheet B)'!$H$90","v":0},{"$f":"'TENDER PACK 2 LNG (Sheet B)'!$H$92","v":0},{"$f":"'TENDER PACK 2 LNG (Sheet B)'!$H$96","v":0},{"$f":"'TENDER PACK 2 LNG (Sheet B)'!$H$97","v":0},{"$f":"'TENDER PACK 2 LNG (Sheet B)'!$H$98","v":0},{"$f":"'TENDER PACK 2 LNG (Sheet B)'!$H$99","v":0},{"$f":"'TENDER PACK 2 LNG (Sheet B)'!$H$100","v":0},{"$f":"'TENDER PACK 2 LNG (Sheet B)'!$H$102","v":0},{"$f":"'TENDER PACK 2 LNG (Sheet B)'!$H$103","v":0},"No",{"$f":"'TENDER PACK 2 LNG (Sheet B)'!$H$128","v":0},{"$f":"'TENDER PACK 2 LNG (Sheet B)'!$H$130","v":0},{"$f":"IF('TENDER PACK 2 LNG (Sheet B)'!$Q$137=1,\"Please Select\",IF('TENDER PACK 2 LNG (Sheet B)'!$Q$137=3,\"Capacity Holder of LNG Importation with Storage\",IF('TENDER PACK 2 LNG (Sheet B)'!$Q$137=2,\"Operator of LNG Importation with Storage\",0)))","v":"Please Select"},{"$f":"'TENDER PACK 2 LNG (Sheet B)'!$H$139","v":0},{"$f":"'TENDER PACK 2 LNG (Sheet B)'!$H$166","v":0},{"$f":"'TENDER PACK 2 LNG (Sheet B)'!$H$169","v":0},{"$f":"'TENDER PACK 2 LNG (Sheet B)'!$H$171","v":0},{"$f":"'TENDER PACK 2 LNG (Sheet B)'!$H$173","v":0},{"$f":"'TENDER PACK 2 LNG (Sheet B)'!$H$175","v":0},{"$f":"'TENDER PACK 2 LNG (Sheet B)'!$H$179","v":0},{"$f":"'TENDER PACK 2 LNG (Sheet B)'!$H$181","v":0},{"$f":"IF('TENDER PACK 2 LNG (Sheet B)'!$Q$183=1,\"12\",IF('TENDER PACK 2 LNG (Sheet B)'!$Q$183=2,\"24\",\"UNCHECKED\"))","v":"24"},{"$f":"'TENDER PACK 2 LNG (Sheet B)'!$H$185","v":0},null,{"$f":"'TENDER PACK 2 LNG (Sheet B)'!D195","v":4},{"$f":"'TENDER PACK 2 LNG (Sheet B)'!$F195","v":0},{"$f":"'TENDER PACK 2 LNG (Sheet B)'!$H195","v":0},{"$f":"'TENDER PACK 2 LNG (Sheet B)'!$J195","v":0},{"$f":"'TENDER PACK 2 LNG (Sheet B)'!$L195","v":0},null,{"$f":"'TENDER PACK 2 LNG (Sheet B)'!$H$204","v":0},{"$f":"'TENDER PACK 2 LNG (Sheet B)'!$H$206","v":0},{"$f":"'TENDER PACK 2 LNG (Sheet B)'!$H$216","v":"[NOT USED]"},{"$f":"'TENDER PACK 2 LNG (Sheet B)'!$H$219","v":0},{"$f":"'TENDER PACK 2 LNG (Sheet B)'!$H$222","v":"Indexed Delivery Charge 1"},{"$f":"'TENDER PACK 2 LNG (Sheet B)'!$H$225","v":0},{"$f":"'TENDER PACK 2 LNG (Sheet B)'!$H$228","v":0},{"$f":"IF('TENDER PACK 2 LNG (Sheet B)'!#REF!=\"\",\"N\",\"Y\")","v":{"$error":"#REF!"}}]
[null,null,null,null,{"$f":"'TENDER PACK 2 LNG (Sheet B)'!$H$88","v":0},{"$f":"'TENDER PACK 2 LNG (Sheet B)'!$H$90","v":0},{"$f":"'TENDER PACK 2 LNG (Sheet B)'!$H$92","v":0},{"$f":"'TENDER PACK 2 LNG (Sheet B)'!$H$96","v":0},{"$f":"'TENDER PACK 2 LNG (Sheet B)'!$H$97","v":0},{"$f":"'TENDER PACK 2 LNG (Sheet B)'!$H$98","v":0},{"$f":"'TENDER PACK 2 LNG (Sheet B)'!$H$99","v":0},{"$f":"'TENDER PACK 2 LNG (Sheet B)'!$H$100","v":0},{"$f":"'TENDER PACK 2 LNG (Sheet B)'!$H$102","v":0},{"$f":"'TENDER PACK 2 LNG (Sheet B)'!$H$103","v":0},"No",{"$f":"'TENDER PACK 2 LNG (Sheet B)'!$H$128","v":0},{"$f":"'TENDER PACK 2 LNG (Sheet B)'!$H$130","v":0},{"$f":"IF('TENDER PACK 2 LNG (Sheet B)'!$Q$137=1,\"Please Select\",IF('TENDER PACK 2 LNG (Sheet B)'!$Q$137=3,\"Capacity Holder of LNG Importation with Storage\",IF('TENDER PACK 2 LNG (Sheet B)'!$Q$137=2,\"Operator of LNG Importation with Storage\",0)))","v":"Please Select"},{"$f":"'TENDER PACK 2 LNG (Sheet B)'!$H$139","v":0},{"$f":"'TENDER PACK 2 LNG (Sheet B)'!$H$166","v":0},{"$f":"'TENDER PACK 2 LNG (Sheet B)'!$H$169","v":0},{"$f":"'TENDER PACK 2 LNG (Sheet B)'!$H$171","v":0},{"$f":"'TENDER PACK 2 LNG (Sheet B)'!$H$173","v":0},{"$f":"'TENDER PACK 2 LNG (Sheet B)'!$H$175","v":0},{"$f":"'TENDER PACK 2 LNG (Sheet B)'!$H$179","v":0},{"$f":"'TENDER PACK 2 LNG (Sheet B)'!$H$181","v":0},{"$f":"IF('TENDER PACK 2 LNG (Sheet B)'!$Q$183=1,\"12\",IF('TENDER PACK 2 LNG (Sheet B)'!$Q$183=2,\"24\",\"UNCHECKED\"))","v":"24"},{"$f":"'TENDER PACK 2 LNG (Sheet B)'!$H$185","v":0},null,{"$f":"'TENDER PACK 2 LNG (Sheet B)'!D196","v":5},{"$f":"'TENDER PACK 2 LNG (Sheet B)'!$F196","v":0},{"$f":"'TENDER PACK 2 LNG (Sheet B)'!$H196","v":0},{"$f":"'TENDER PACK 2 LNG (Sheet B)'!$J196","v":0},{"$f":"'TENDER PACK 2 LNG (Sheet B)'!$L196","v":0},null,{"$f":"'TENDER PACK 2 LNG (Sheet B)'!$H$204","v":0},{"$f":"'TENDER PACK 2 LNG (Sheet B)'!$H$206","v":0},{"$f":"'TENDER PACK 2 LNG (Sheet B)'!$H$216","v":"[NOT USED]"},{"$f":"'TENDER PACK 2 LNG (Sheet B)'!$H$219","v":0},{"$f":"'TENDER PACK 2 LNG (Sheet B)'!$H$222","v":"Indexed Delivery Charge 1"},{"$f":"'TENDER PACK 2 LNG (Sheet B)'!$H$225","v":0},{"$f":"'TENDER PACK 2 LNG (Sheet B)'!$H$228","v":0},{"$f":"IF('TENDER PACK 2 LNG (Sheet B)'!#REF!=\"\",\"N\",\"Y\")","v":{"$error":"#REF!"}}]
[null,null,null,null,{"$f":"'TENDER PACK 2 LNG (Sheet B)'!$H$88","v":0},{"$f":"'TENDER PACK 2 LNG (Sheet B)'!$H$90","v":0},{"$f":"'TENDER PACK 2 LNG (Sheet B)'!$H$92","v":0},{"$f":"'TENDER PACK 2 LNG (Sheet B)'!$H$96","v":0},{"$f":"'TENDER PACK 2 LNG (Sheet B)'!$H$97","v":0},{"$f":"'TENDER PACK 2 LNG (Sheet B)'!$H$98","v":0},{"$f":"'TENDER PACK 2 LNG (Sheet B)'!$H$99","v":0},{"$f":"'TENDER PACK 2 LNG (Sheet B)'!$H$100","v":0},{"$f":"'TENDER PACK 2 LNG (Sheet B)'!$H$102","v":0},{"$f":"'TENDER PACK 2 LNG (Sheet B)'!$H$103","v":0},"No",{"$f":"'TENDER PACK 2 LNG (Sheet B)'!$H$128","v":0},{"$f":"'TENDER PACK 2 LNG (Sheet B)'!$H$130","v":0},{"$f":"IF('TENDER PACK 2 LNG (Sheet B)'!$Q$137=1,\"Please Select\",IF('TENDER PACK 2 LNG (Sheet B)'!$Q$137=3,\"Capacity Holder of LNG Importation with Storage\",IF('TENDER PACK 2 LNG (Sheet B)'!$Q$137=2,\"Operator of LNG Importation with Storage\",0)))","v":"Please Select"},{"$f":"'TENDER PACK 2 LNG (Sheet B)'!$H$139","v":0},{"$f":"'TENDER PACK 2 LNG (Sheet B)'!$H$166","v":0},{"$f":"'TENDER PACK 2 LNG (Sheet B)'!$H$169","v":0},{"$f":"'TENDER PACK 2 LNG (Sheet B)'!$H$171","v":0},{"$f":"'TENDER PACK 2 LNG (Sheet B)'!$H$173","v":0},{"$f":"'TENDER PACK 2 LNG (Sheet B)'!$H$175","v":0},{"$f":"'TENDER PACK 2 LNG (Sheet B)'!$H$179","v":0},{"$f":"'TENDER PACK 2 LNG (Sheet B)'!$H$181","v":0},{"$f":"IF('TENDER PACK 2 LNG (Sheet B)'!$Q$183=1,\"12\",IF('TENDER PACK 2 LNG (Sheet B)'!$Q$183=2,\"24\",\"UNCHECKED\"))","v":"24"},{"$f":"'TENDER PACK 2 LNG (Sheet B)'!$H$185","v":0},null,{"$f":"'TENDER PACK 2 LNG (Sheet B)'!D197","v":6},{"$f":"'TENDER PACK 2 LNG (Sheet B)'!$F197","v":0},{"$f":"'TENDER PACK 2 LNG (Sheet B)'!$H197","v":0},{"$f":"'TENDER PACK 2 LNG (Sheet B)'!$J197","v":0},{"$f":"'TENDER PACK 2 LNG (Sheet B)'!$L197","v":0},null,{"$f":"'TENDER PACK 2 LNG (Sheet B)'!$H$204","v":0},{"$f":"'TENDER PACK 2 LNG (Sheet B)'!$H$206","v":0},{"$f":"'TENDER PACK 2 LNG (Sheet B)'!$H$216","v":"[NOT USED]"},{"$f":"'TENDER PACK 2 LNG (Sheet B)'!$H$219","v":0},{"$f":"'TENDER PACK 2 LNG (Sheet B)'!$H$222","v":"Indexed Delivery Charge 1"},{"$f":"'TENDER PACK 2 LNG (Sheet B)'!$H$225","v":0},{"$f":"'TENDER PACK 2 LNG (Sheet B)'!$H$228","v":0},{"$f":"IF('TENDER PACK 2 LNG (Sheet B)'!#REF!=\"\",\"N\",\"Y\")","v":{"$error":"#REF!"}}]
[null,null,null,null,{"$f":"'TENDER PACK 2 LNG (Sheet B)'!$H$88","v":0},{"$f":"'TENDER PACK 2 LNG (Sheet B)'!$H$90","v":0},{"$f":"'TENDER PACK 2 LNG (Sheet B)'!$H$92","v":0},{"$f":"'TENDER PACK 2 LNG (Sheet B)'!$H$96","v":0},{"$f":"'TENDER PACK 2 LNG (Sheet B)'!$H$97","v":0},{"$f":"'TENDER PACK 2 LNG (Sheet B)'!$H$98","v":0},{"$f":"'TENDER PACK 2 LNG (Sheet B)'!$H$99","v":0},{"$f":"'TENDER PACK 2 LNG (Sheet B)'!$H$100","v":0},{"$f":"'TENDER PACK 2 LNG (Sheet B)'!$H$102","v":0},{"$f":"'TENDER PACK 2 LNG (Sheet B)'!$H$103","v":0},"No",{"$f":"'TENDER PACK 2 LNG (Sheet B)'!$H$128","v":0},{"$f":"'TENDER PACK 2 LNG (Sheet B)'!$H$130","v":0},{"$f":"IF('TENDER PACK 2 LNG (Sheet B)'!$Q$137=1,\"Please Select\",IF('TENDER PACK 2 LNG (Sheet B)'!$Q$137=3,\"Capacity Holder of LNG Importation with Storage\",IF('TENDER PACK 2 LNG (Sheet B)'!$Q$137=2,\"Operator of LNG Importation with Storage\",0)))","v":"Please Select"},{"$f":"'TENDER PACK 2 LNG (Sheet B)'!$H$139","v":0},{"$f":"'TENDER PACK 2 LNG (Sheet B)'!$H$166","v":0},{"$f":"'TENDER PACK 2 LNG (Sheet B)'!$H$169","v":0},{"$f":"'TENDER PACK 2 LNG (Sheet B)'!$H$171","v":0},{"$f":"'TENDER PACK 2 LNG (Sheet B)'!$H$173","v":0},{"$f":"'TENDER PACK 2 LNG (Sheet B)'!$H$175","v":0},{"$f":"'TENDER PACK 2 LNG (Sheet B)'!$H$179","v":0},{"$f":"'TENDER PACK 2 LNG (Sheet B)'!$H$181","v":0},{"$f":"IF('TENDER PACK 2 LNG (Sheet B)'!$Q$183=1,\"12\",IF('TENDER PACK 2 LNG (Sheet B)'!$Q$183=2,\"24\",\"UNCHECKED\"))","v":"24"},{"$f":"'TENDER PACK 2 LNG (Sheet B)'!$H$185","v":0},null,{"$f":"'TENDER PACK 2 LNG (Sheet B)'!D198","v":7},{"$f":"'TENDER PACK 2 LNG (Sheet B)'!$F198","v":0},{"$f":"'TENDER PACK 2 LNG (Sheet B)'!$H198","v":0},{"$f":"'TENDER PACK 2 LNG (Sheet B)'!$J198","v":0},{"$f":"'TENDER PACK 2 LNG (Sheet B)'!$L198","v":0},null,{"$f":"'TENDER PACK 2 LNG (Sheet B)'!$H$204","v":0},{"$f":"'TENDER PACK 2 LNG (Sheet B)'!$H$206","v":0},{"$f":"'TENDER PACK 2 LNG (Sheet B)'!$H$216","v":"[NOT USED]"},{"$f":"'TENDER PACK 2 LNG (Sheet B)'!$H$219","v":0},{"$f":"'TENDER PACK 2 LNG (Sheet B)'!$H$222","v":"Indexed Delivery Charge 1"},{"$f":"'TENDER PACK 2 LNG (Sheet B)'!$H$225","v":0},{"$f":"'TENDER PACK 2 LNG (Sheet B)'!$H$228","v":0},{"$f":"IF('TENDER PACK 2 LNG (Sheet B)'!#REF!=\"\",\"N\",\"Y\")","v":{"$error":"#REF!"}}]
[null,null,null,null,{"$f":"'TENDER PACK 2 LNG (Sheet B)'!$H$88","v":0},{"$f":"'TENDER PACK 2 LNG (Sheet B)'!$H$90","v":0},{"$f":"'TENDER PACK 2 LNG (Sheet B)'!$H$92","v":0},{"$f":"'TENDER PACK 2 LNG (Sheet B)'!$H$96","v":0},{"$f":"'TENDER PACK 2 LNG (Sheet B)'!$H$97","v":0},{"$f":"'TENDER PACK 2 LNG (Sheet B)'!$H$98","v":0},{"$f":"'TENDER PACK 2 LNG (Sheet B)'!$H$99","v":0},{"$f":"'TENDER PACK 2 LNG (Sheet B)'!$H$100","v":0},{"$f":"'TENDER PACK 2 LNG (Sheet B)'!$H$102","v":0},{"$f":"'TENDER PACK 2 LNG (Sheet B)'!$H$103","v":0},"No",{"$f":"'TENDER PACK 2 LNG (Sheet B)'!$H$128","v":0},{"$f":"'TENDER PACK 2 LNG (Sheet B)'!$H$130","v":0},{"$f":"IF('TENDER PACK 2 LNG (Sheet B)'!$Q$137=1,\"Please Select\",IF('TENDER PACK 2 LNG (Sheet B)'!$Q$137=3,\"Capacity Holder of LNG Importation with Storage\",IF('TENDER PACK 2 LNG (Sheet B)'!$Q$137=2,\"Operator of LNG Importation with Storage\",0)))","v":"Please Select"},{"$f":"'TENDER PACK 2 LNG (Sheet B)'!$H$139","v":0},{"$f":"'TENDER PACK 2 LNG (Sheet B)'!$H$166","v":0},{"$f":"'TENDER PACK 2 LNG (Sheet B)'!$H$169","v":0},{"$f":"'TENDER PACK 2 LNG (Sheet B)'!$H$171","v":0},{"$f":"'TENDER PACK 2 LNG (Sheet B)'!$H$173","v":0},{"$f":"'TENDER PACK 2 LNG (Sheet B)'!$H$175","v":0},{"$f":"'TENDER PACK 2 LNG (Sheet B)'!$H$179","v":0},{"$f":"'TENDER PACK 2 LNG (Sheet B)'!$H$181","v":0},{"$f":"IF('TENDER PACK 2 LNG (Sheet B)'!$Q$183=1,\"12\",IF('TENDER PACK 2 LNG (Sheet B)'!$Q$183=2,\"24\",\"UNCHECKED\"))","v":"24"},{"$f":"'TENDER PACK 2 LNG (Sheet B)'!$H$185","v":0},null,{"$f":"'TENDER PACK 2 LNG (Sheet B)'!D199","v":8},{"$f":"'TENDER PACK 2 LNG (Sheet B)'!$F199","v":0},{"$f":"'TENDER PACK 2 LNG (Sheet B)'!$H199","v":0},{"$f":"'TENDER PACK 2 LNG (Sheet B)'!$J199","v":0},{"$f":"'TENDER PACK 2 LNG (Sheet B)'!$L199","v":0},null,{"$f":"'TENDER PACK 2 LNG (Sheet B)'!$H$204","v":0},{"$f":"'TENDER PACK 2 LNG (Sheet B)'!$H$206","v":0},{"$f":"'TENDER PACK 2 LNG (Sheet B)'!$H$216","v":"[NOT USED]"},{"$f":"'TENDER PACK 2 LNG (Sheet B)'!$H$219","v":0},{"$f":"'TENDER PACK 2 LNG (Sheet B)'!$H$222","v":"Indexed Delivery Charge 1"},{"$f":"'TENDER PACK 2 LNG (Sheet B)'!$H$225","v":0},{"$f":"'TENDER PACK 2 LNG (Sheet B)'!$H$228","v":0},{"$f":"IF('TENDER PACK 2 LNG (Sheet B)'!#REF!=\"\",\"N\",\"Y\")","v":{"$error":"#REF!"}}]
[null,null,null,null,{"$f":"'TENDER PACK 2 LNG (Sheet B)'!$H$88","v":0},{"$f":"'TENDER PACK 2 LNG (Sheet B)'!$H$90","v":0},{"$f":"'TENDER PACK 2 LNG (Sheet B)'!$H$92","v":0},{"$f":"'TENDER PACK 2 LNG (Sheet B)'!$H$96","v":0},{"$f":"'TENDER PACK 2 LNG (Sheet B)'!$H$97","v":0},{"$f":"'TENDER PACK 2 LNG (Sheet B)'!$H$98","v":0},{"$f":"'TENDER PACK 2 LNG (Sheet B)'!$H$99","v":0},{"$f":"'TENDER PACK 2 LNG (Sheet B)'!$H$100","v":0},{"$f":"'TENDER PACK 2 LNG (Sheet B)'!$H$102","v":0},{"$f":"'TENDER PACK 2 LNG (Sheet B)'!$H$103","v":0},"No",{"$f":"'TENDER PACK 2 LNG (Sheet B)'!$H$128","v":0},{"$f":"'TENDER PACK 2 LNG (Sheet B)'!$H$130","v":0},{"$f":"IF('TENDER PACK 2 LNG (Sheet B)'!$Q$137=1,\"Please Select\",IF('TENDER PACK 2 LNG (Sheet B)'!$Q$137=3,\"Capacity Holder of LNG Importation with Storage\",IF('TENDER PACK 2 LNG (Sheet B)'!$Q$137=2,\"Operator of LNG Importation with Storage\",0)))","v":"Please Select"},{"$f":"'TENDER PACK 2 LNG (Sheet B)'!$H$139","v":0},{"$f":"'TENDER PACK 2 LNG (Sheet B)'!$H$166","v":0},{"$f":"'TENDER PACK 2 LNG (Sheet B)'!$H$169","v":0},{"$f":"'TENDER PACK 2 LNG (Sheet B)'!$H$171","v":0},{"$f":"'TENDER PACK 2 LNG (Sheet B)'!$H$173","v":0},{"$f":"'TENDER PACK 2 LNG (Sheet B)'!$H$175","v":0},{"$f":"'TENDER PACK 2 LNG (Sheet B)'!$H$179","v":0},{"$f":"'TENDER PACK 2 LNG (Sheet B)'!$H$181","v":0},{"$f":"IF('TENDER PACK 2 LNG (Sheet B)'!$Q$183=1,\"12\",IF('TENDER PACK 2 LNG (Sheet B)'!$Q$183=2,\"24\",\"UNCHECKED\"))","v":"24"},{"$f":"'TENDER PACK 2 LNG (Sheet B)'!$H$185","v":0},null,{"$f":"'TENDER PACK 2 LNG (Sheet B)'!D200","v":9},{"$f":"'TENDER PACK 2 LNG (Sheet B)'!$F200","v":0},{"$f":"'TENDER PACK 2 LNG (Sheet B)'!$H200","v":0},{"$f":"'TENDER PACK 2 LNG (Sheet B)'!$J200","v":0},{"$f":"'TENDER PACK 2 LNG (Sheet B)'!$L200","v":0},null,{"$f":"'TENDER PACK 2 LNG (Sheet B)'!$H$204","v":0},{"$f":"'TENDER PACK 2 LNG (Sheet B)'!$H$206","v":0},{"$f":"'TENDER PACK 2 LNG (Sheet B)'!$H$216","v":"[NOT USED]"},{"$f":"'TENDER PACK 2 LNG (Sheet B)'!$H$219","v":0},{"$f":"'TENDER PACK 2 LNG (Sheet B)'!$H$222","v":"Indexed Delivery Charge 1"},{"$f":"'TENDER PACK 2 LNG (Sheet B)'!$H$225","v":0},{"$f":"'TENDER PACK 2 LNG (Sheet B)'!$H$228","v":0},{"$f":"IF('TENDER PACK 2 LNG (Sheet B)'!#REF!=\"\",\"N\",\"Y\")","v":{"$error":"#REF!"}}]
[null,null,null,null,{"$f":"'TENDER PACK 2 LNG (Sheet B)'!$H$88","v":0},{"$f":"'TENDER PACK 2 LNG (Sheet B)'!$H$90","v":0},{"$f":"'TENDER PACK 2 LNG (Sheet B)'!$H$92","v":0},{"$f":"'TENDER PACK 2 LNG (Sheet B)'!$H$96","v":0},{"$f":"'TENDER PACK 2 LNG (Sheet B)'!$H$97","v":0},{"$f":"'TENDER PACK 2 LNG (Sheet B)'!$H$98","v":0},{"$f":"'TENDER PACK 2 LNG (Sheet B)'!$H$99","v":0},{"$f":"'TENDER PACK 2 LNG (Sheet B)'!$H$100","v":0},{"$f":"'TENDER PACK 2 LNG (Sheet B)'!$H$102","v":0},{"$f":"'TENDER PACK 2 LNG (Sheet B)'!$H$103","v":0},"No",{"$f":"'TENDER PACK 2 LNG (Sheet B)'!$H$128","v":0},{"$f":"'TENDER PACK 2 LNG (Sheet B)'!$H$130","v":0},{"$f":"IF('TENDER PACK 2 LNG (Sheet B)'!$Q$137=1,\"Please Select\",IF('TENDER PACK 2 LNG (Sheet B)'!$Q$137=3,\"Capacity Holder of LNG Importation with Storage\",IF('TENDER PACK 2 LNG (Sheet B)'!$Q$137=2,\"Operator of LNG Importation with Storage\",0)))","v":"Please Select"},{"$f":"'TENDER PACK 2 LNG (Sheet B)'!$H$139","v":0},{"$f":"'TENDER PACK 2 LNG (Sheet B)'!$H$166","v":0},{"$f":"'TENDER PACK 2 LNG (Sheet B)'!$H$169","v":0},{"$f":"'TENDER PACK 2 LNG (Sheet B)'!$H$171","v":0},{"$f":"'TENDER PACK 2 LNG (Sheet B)'!$H$173","v":0},{"$f":"'TENDER PACK 2 LNG (Sheet B)'!$H$175","v":0},{"$f":"'TENDER PACK 2 LNG (Sheet B)'!$H$179","v":0},{"$f":"'TENDER PACK 2 LNG (Sheet B)'!$H$181","v":0},{"$f":"IF('TENDER PACK 2 LNG (Sheet B)'!$Q$183=1,\"12\",IF('TENDER PACK 2 LNG (Sheet B)'!$Q$183=2,\"24\",\"UNCHECKED\"))","v":"24"},{"$f":"'TENDER PACK 2 LNG (Sheet B)'!$H$185","v":0},null,{"$f":"'TENDER PACK 2 LNG (Sheet B)'!D201","v":10},{"$f":"'TENDER PACK 2 LNG (Sheet B)'!$F201","v":0},{"$f":"'TENDER PACK 2 LNG (Sheet B)'!$H201","v":0},{"$f":"'TENDER PACK 2 LNG (Sheet B)'!$J201","v":0},{"$f":"'TENDER PACK 2 LNG (Sheet B)'!$L201","v":0},null,{"$f":"'TENDER PACK 2 LNG (Sheet B)'!$H$204","v":0},{"$f":"'TENDER PACK 2 LNG (Sheet B)'!$H$206","v":0},{"$f":"'TENDER PACK 2 LNG (Sheet B)'!$H$216","v":"[NOT USED]"},{"$f":"'TENDER PACK 2 LNG (Sheet B)'!$H$219","v":0},{"$f":"'TENDER PACK 2 LNG (Sheet B)'!$H$222","v":"Indexed Delivery Charge 1"},{"$f":"'TENDER PACK 2 LNG (Sheet B)'!$H$225","v":0},{"$f":"'TENDER PACK 2 LNG (Sheet B)'!$H$228","v":0},{"$f":"IF('TENDER PACK 2 LNG (Sheet B)'!#REF!=\"\",\"N\",\"Y\")","v":{"$error":"#REF!"}}]

{"sheet":"TENDER PACK 2 LNG (Sheet C)","index":4,"n_rows":246,"n_cols":18,"rows_kept":246,"cut":false,"hidden":false,"merged":[[199,13,199,14],[200,3,200,4],[200,5,200,6],[200,7,200,8],[200,9,200,10],[200,11,200,12],[200,13,200,14],[201,3,201,4],[201,5,201,6],[201,7,201,8],[201,9,201,10],[201,11,201,12],[201,13,201,14],[199,3,199,4],[199,5,199,6],[199,7,199,8],[199,9,199,10],[199,11,199,12],[23,16,24,16],[24,3,24,14],[25,3,25,14],[27,3,38,14],[27,16,29,16],[42,3,42,14],[2,3,6,14],[3,16,5,16],[13,3,14,14],[16,3,22,14],[17,16,20,16],[87,3,88,6],[87,7,88,14],[89,3,90,6],[89,7,90,14],[91,2,94,2],[91,3,94,6],[91,7,94,14],[43,3,47,14],[43,16,45,16],[49,3,61,14],[53,16,55,16],[82,3,83,14],[85,3,85,14],[98,3,98,6],[98,7,98,14],[99,3,100,6],[99,7,100,14],[101,3,101,6],[101,7,101,14],[95,3,95,6],[95,7,95,14],[96,3,96,6],[96,7,96,14],[97,3,97,6],[97,7,97,14],[127,2,128,2],[127,3,128,6],[127,7,128,14],[129,2,133,2],[129,3,133,6],[129,7,133,14],[102,3,102,6],[102,7,102,14],[104,3,104,14],[106,3,107,14],[122,3,123,14],[125,3,125,14],[160,3,161,14],[163,3,163,14],[165,2,167,2],[165,3,167,6],[165,7,167,12],[165,13,167,14],[134,2,137,2],[134,3,137,6],[134,7,137,14],[138,2,140,2],[138,3,140,6],[138,7,140,14],[165,16,167,16],[168,2,169,2],[168,3,169,6],[168,7,169,12],[168,13,169,14],[170,2,171,2],[170,3,171,6],[170,7,171,12],[170,13,171,14],[178,2,179,2],[178,3,179,6],[178,7,179,14],[180,2,181,2],[180,3,181,6],[180,7,181,14],[172,2,173,2],[172,3,173,6],[172,7,173,12],[172,13,173,14],[174,2,177,2],[174,3,177,6],[174,7,177,12],[174,13,177,14],[187,2,188,2],[187,3,187,14],[182,2,183,2],[182,3,183,6],[182,7,183,12],[182,13,183,14],[184,2,185,2],[184,3,185,6],[184,7,185,12],[184,13,185,14],[189,3,189,4],[189,5,189,6],[189,7,189,8],[189,9,189,10],[189,11,189,12],[189,13,189,14],[190,3,190,4],[190,5,190,6],[190,7,190,8],[190,9,190,10],[190,11,190,12],[190,13,190,14],[191,3,191,4],[191,5,191,6],[191,7,191,8],[191,9,191,10],[191,11,191,12],[191,13,191,14],[192,3,192,4],[192,5,192,6],[192,7,192,8],[192,9,192,10],[192,11,192,12],[192,13,192,14],[193,3,193,4],[193,5,193,6],[193,7,193,8],[193,9,193,10],[193,11,193,12],[193,13,193,14],[194,3,194,4],[194,5,194,6],[194,7,194,8],[194,9,194,10],[194,11,194,12],[194,13,194,14],[198,5,198,6],[198,7,198,8],[198,9,198,10],[198,11,198,12],[198,13,198,14],[195,3,195,4],[195,5,195,6],[195,7,195,8],[195,9,195,10],[195,11,195,12],[195,13,195,14],[196,3,196,4],[196,5,196,6],[196,7,196,8],[196,9,196,10],[196,11,196,12],[196,13,196,14],[225,3,230,6],[225,7,230,12],[225,13,230,14],[222,16,224,16],[141,2,143,2],[141,3,143,6],[141,7,143,14],[8,3,11,9],[8,10,11,10],[8,11,11,14],[210,3,211,14],[213,3,213,14],[203,2,204,2],[205,2,206,2],[203,3,204,14],[205,3,206,8],[205,10,206,14],[197,3,197,4],[197,5,197,6],[197,7,197,8],[197,9,197,10],[197,11,197,12],[197,13,197,14],[198,3,198,4],[231,2,232,2],[231,3,232,6],[231,7,232,12],[231,13,232,14],[233,2,236,2],[233,3,236,6],[233,7,236,14],[215,2,216,2],[215,3,216,6],[215,7,216,12],[215,13,216,14],[217,2,218,2],[217,3,218,6],[217,7,218,12],[217,13,218,14],[219,2,221,2],[219,3,221,6],[219,7,221,12],[219,13,221,14],[222,2,224,2],[222,3,224,6],[222,7,224,12],[222,13,224,14],[225,2,230,2]]}
[]
[]
[null,null,null,"\nTENDER PACK 2\nOPERATING MARGINS - 2022/23 GAS DELIVERY TENDER (LNG)\nSHEET C - OPTIONAL 7 MONTH BID (WINTER ONLY SERVICE)\n"]
[]
[]
[]
[]
[]
[null,null,null,"This tender pack is designed for;\n• LNG Importation with Storage Facility Operators\n• Capacity Holders at LNG Importation with Storage Facilities\n",null,null,null,null,null,null,null,"Submission of this sheet is optional for LNG Tenderers"]
[]
[]
[]
[]
[null,null,null,"Issued 30th November 2021"]
[]
[]
[null,null,null,"Produced by National Grid Gas Transmission  \nNational Grid Gas plc\nNational Grid House\nWarwick Technology Park\nGallows Hill\nWarwick\nCV34 6DA"]
[]
[]
[]
[]
[]
[]
[]
[null,null,null,"Website:"]
[null,null,null,"https://www.nationalgrid.com/uk/gas-transmission/balancing/operating-margins-om"]
[]
[null,null,null,"PLEASE NOTE:\nThis document should be read in conjunction with the template Operating Margins agreements (found on the Operating Margins Homepage) and the document entitled \"Tender Guidance Document 2022/23\".\n\nSpecific guidance on how to complete these tender sheets is provided in Sections 7 & 8 of the Operating Margins Tender Guidance Document with specific cross-references to these tender sheets via superscript numbers adjacent to the relevant fields of information. Please also refer to Section 6 \"Requirements of the Tender Process\" in order to understand what must accompany the tender sheets as part of submission in order that assessment can proceed on any tenders received.\n\nTerms and phrases used in this document have the meanings set out or referred to in the template Operating Margins agreements and/or the Operating Margins Tender Guidance Document."]
[]
[]
[]
[]
[]
[]
[]
[]
[]
[]
[]
[null,null,null,null,null,null,null,null,null,null,null,null,null,null,null,null,"Page 1"]
[]
[]
[null,null,null,"IMPORTANT INFORMATION - PLEASE READ:"]
[null,null,null,"• All parts of 'Sheet A' must be completed by all LNG tenderers and submitted to be eligible for assessment.\n• An LNG tenderer may submit an additional proposal for a 12 month OM service in the form of 'Sheet B', whereby tranches are split differently (Part 5). This is optional. \n• An LNG tenderer may submit an additional offer for a 7 month OM service in the form of 'Sheet C'. This is optional.\n\n**Volumes in Sheets A, B and C will be treated as mutually exclusive - i.e. National Grid will only consider accepting tranche(s) from ONE of Sheet A, Sheet B, or Sheet C.**"]
[]
[]
[]
[]
[]
[null,null,null,"Completed Tenders should be submitted by 13:00 hours (GMT) on Monday 17 January 2022 via Ariba.\n\nThe completed Tender Pack should be uploaded with a filename which includes the company name and site.\nAfter uploading the Tender Pack document, terms and conditions must be accepted before submitting.\nSubmissions can be revised until the deadline."]
[]
[]
[]
[]
[]
[]
[]
[]
[]
[]
[]
[]
[]
[]
[]
[]
[]
[]
[]
[]
[]
[]
[]
[]
[]
[]
[]
[]
[]
[null,null,null,null,null,null,null,null,null,null,null,null,null,null,null,null,"Page 2"]
[]
[]
[null,null,null,"2022/23 OM GAS DELIVERY TENDER"]
[]
[]
[null,null,null,"Part 1: Tenderer Details"]
[]
[null,null,1,"Tenderer's Company Name\n(including company number)"]
[]
[null,null,2,"Company Representative, Job Title"]
[]
[null,null,3,"Company Representative Address\n(full address including postcode)"]
[]
[]
[]
[null,null,4,"Telephone Number"]
[null,null,5,"Facsimile Number"]
[null,null,6,"Email Address"]
[null,null,7,"Legal Agent Name"]
[null,null,8,"Legal Agent Address"]
[]
[null,null,9,"Shipper Short Code"]
[null,null,10,"Achilles Registration Number"]
[]
[null,null,null,"Part 2"]
[]
[null,null,null,"[See OM Tenderers Contract Response Form if such amendments are proposed]\nIf no amendments are proposed please go to Part 3"]
[]
[]
[]
[]
[]
[]
[]
[]
[]
[]
[]
[]
[null,null,null,null,null,null,null,null,null,null,null,null,null,null,null,null,"Page 3"]
[]
[]
[null,null,null,"2022/23 OM GAS DELIVERY TENDER"]
[]
[]
[null,null,null,"Part 3: Facility Details"]
[]
[null,null,11,"Facility Name\n(including company number)"]
[]
[null,null,12,"Facility Location\n(full address including postcode)"]
[]
[]
[]
[]
[null,null,13,"Service Provision Category",null,null,null,null,null,null,null,null,null,null,null,null,null,"Operator of LNG Importation with Storage"]
[null,null,null,null,null,null,null,null,null,null,null,null,null,null,null,null,null,"Capacity Holder of LNG Importation with Storage"]
[null,null,null,null,null,null,null,null,null,null,null,null,null,null,null,null,3]
[]
[null,null,14,"Execution Date For Tenderer’s Agreement With Facility Operator"]
[]
[]
[null,null,15,"Duration of Service",null,null,null,"7 Months (01/10/2022 - 30/04/2023)"]
[]
[]
[]
[]
[]
[]
[]
[]
[]
[]
[]
[]
[]
[]
[]
[null,null,null,null,null,null,null,null,null,null,null,null,null,null,null,null,"Page 4"]
[]
[]
[null,null,null,"2022/23 OM GAS DELIVERY TENDER"]
[]
[]
[null,null,null,"Part 4: Deliverability & Availability"]
[]
[null,null,16,"Maximum Delivery Rate (Tendered)\n(must be greater or equal to 500,000 kWh/hour)",null,null,null,null,null,null,null,null,null,"kWh/hour"]
[]
[]
[]
[]
[null,null,17,"Minimum Delivery Rate\n(optional) (if left blank delivery deemed at 0)",null,null,null,null,null,null,null,null,null,"kWh/hour"]
[]
[null,null,18,"Response Time",null,null,null,null,null,null,null,null,null,"Minutes"]
[]
[null,null,19,"Planned Maintenance Periods",null,null,null,null,null,null,null,null,null,"Dates"]
[]
[]
[]
[null,null,20,"Website for Service Availability / Unavailability"]
[]
[null,null,21,"Allocation Agent                                                                  (Name, Address, Tel No)"]
[]
[null,null,22,"Maximum Delivery Duration",null,null,null,null,null,null,null,null,null,"hours",null,null,2]
[]
[null,null,23,"Minimum Delivery Duration\n(Optional) (if left blank delivery deemed at 0)",null,null,null,null,null,null,null,null,null,"hours"]
[]
[]
[null,null,null,"Part 5: Charges"]
[]
[null,null,null,24,null,25,null,26,null,27,null,28,null,29]
[null,null,null,"LNG Procurement Tranche Number",null,"Service Quantity (in kWh)",null,"Estimated Necessary Delivery LNG Quantity kWh",null,"Tranche may only be accepted in full (YES / NO)",null,"Annual Service Fee (in pence per kWh per annum)",null,"Service Fee (£)\n (7 months)"]
[null,null,null,1,null,null,null,null,null,null,null,null,null,{"$f":"((F192*L192)/100)*(212/365)","v":0}]
[null,null,null,2,null,null,null,null,null,null,null,null,null,{"$f":"((F193*L193)/100)*(212/365)","v":0}]
[null,null,null,3,null,null,null,null,null,null,null,null,null,0]
[null,null,null,4,null,null,null,null,null,null,null,null,null,0]
[null,null,null,5,null,null,null,null,null,null,null,null,null,0]
[null,null,null,6,null,null,null,null,null,null,null,null,null,0]
[null,null,null,7,null,null,null,null,null,null,null,null,null,0]
[null,null,null,8,null,null,null,null,null,null,null,null,null,0]
[null,null,null,9,null,null,null,null,null,null,null,null,null,0]
[null,null,null,10,null,null,null,null,null,null,null,null,null,0]
[null,null,null,"Total",null,{"$f":"SUM(F192:G201)","v":0},null,{"$f":"SUM(H192:I201)","v":0},null,null,null,null,null,{"$f":"SUM(N192:O201)","v":0}]
[]
[null,null,null,"1 Please quote the Annual Service Fee in pence per kWh per annum. Should the bid be successful, for Sheet C this would be pro-rated into a contractual service fee for 7 months (212 days). Worked Example below:"]
[]
[null,null,null,"Service Quantity = 10,000,000 kWh\nAnnual Service Fee (in pence per kWh per annum = 1 pence",null,null,null,null,null,null,"Contractual Service Fee (£) for 7 months = \n(10,000,000*£0.01) x (212 / 365) = £58,082"]
[]
[null,null,null,null,null,null,null,null,null,null,null,null,null,null,null,null,"Page 5"]
[]
[]
[null,null,null,"2022/23 OM GAS DELIVERY TENDER"]
[]
[]
[null,null,null,"Part 5: Charges (Continued)"]
[]
[null,null,30,"Minimum Inventory ",null,null,null,null,null,null,null,null,null,"kWh"]
[]
[null,null,31,"Facility Delivery Capacity \n(nominal)",null,null,null,null,null,null,null,null,null,"kWh/h"]
[]
[null,null,32,"[NOT USED]",null,null,null,"[NOT USED]",null,null,null,null,null,"[NOT USED]"]
[]
[]
[]
[]
[]
[null,null,33,"Indexed Delivery Charge\n",null,null,null,"Indexed Delivery Charge 1",null,null,null,null,null,"See Guidance Document"]
[]
[]
[]
[]
[]
[null,null,34,"Overrun Delivery Price ",null,null,null,null,null,null,null,null,null,"p/kWh"]
[]
[null,null,35,"Additional Nomination Restrictions "]
[]
[]
[]
[]
[]
[]
[]
[]
[]
[]
[]
[null,null,null,null,null,null,null,null,null,null,null,null,null,null,null,null,"Page 6"]

{"sheet":"DC2C","index":5,"n_rows":13,"n_cols":43,"rows_kept":13,"cut":false,"hidden":true,"merged":[[0,2,1,9]]}
[null,null,"Data Collection Tab for Contracts Team"]
[]
["Tender Pack","Tender Ref","Tranche Ref","Main Ref",{"$f":"'TENDER PACK 2 LNG (Sheet C)'!D88","v":"Tenderer's Company Name\n(including company number)"},{"$f":"'TENDER PACK 2 LNG (Sheet C)'!D90","v":"Company Representative, Job Title"},{"$f":"'TENDER PACK 2 LNG (Sheet C)'!D92","v":"Company Representative Address\n(full address including postcode)"},{"$f":"'TENDER PACK 2 LNG (Sheet C)'!D96","v":"Telephone Number"},{"$f":"'TENDER PACK 2 LNG (Sheet C)'!D97","v":"Facsimile Number"},{"$f":"'TENDER PACK 2 LNG (Sheet C)'!D98","v":"Email Address"},{"$f":"'TENDER PACK 2 LNG (Sheet C)'!D99","v":"Legal Agent Name"},{"$f":"'TENDER PACK 2 LNG (Sheet C)'!D100","v":"Legal Agent Address"},{"$f":"'TENDER PACK 2 LNG (Sheet C)'!D102","v":"Shipper Short Code"},{"$f":"'TENDER PACK 2 LNG (Sheet C)'!D103","v":"Achilles Registration Number"},"Winter Only?",{"$f":"'TENDER PACK 2 LNG (Sheet C)'!D128","v":"Facility Name\n(including company number)"},{"$f":"'TENDER PACK 2 LNG (Sheet C)'!D130","v":"Facility Location\n(full address including postcode)"},{"$f":"'TENDER PACK 2 LNG (Sheet C)'!D135","v":"Service Provision Category"},{"$f":"'TENDER PACK 2 LNG (Sheet C)'!D139","v":"Execution Date For Tenderer’s Agreement With Facility Operator"},{"$f":"'TENDER PACK 2 LNG (Sheet C)'!$D$166","v":"Maximum Delivery Rate (Tendered)\n(must be greater or equal to 500,000 kWh/hour)"},{"$f":"'TENDER PACK 2 LNG (Sheet C)'!$D$169","v":0},{"$f":"'TENDER PACK 2 LNG (Sheet C)'!$D$171","v":"Minimum Delivery Rate\n(optional) (if left blank delivery deemed at 0)"},{"$f":"'TENDER PACK 2 LNG (Sheet C)'!$D$173","v":"Response Time"},{"$f":"'TENDER PACK 2 LNG (Sheet C)'!$D$175","v":"Planned Maintenance Periods"},{"$f":"'TENDER PACK 2 LNG (Sheet C)'!$D$179","v":"Website for Service Availability / Unavailability"},{"$f":"'TENDER PACK 2 LNG (Sheet C)'!$D$181","v":"Allocation Agent                                                                  (Name, Address, Tel No)"},{"$f":"'TENDER PACK 2 LNG (Sheet C)'!$D$183","v":"Maximum Delivery Duration"},{"$f":"'TENDER PACK 2 LNG (Sheet C)'!$D$185","v":"Minimum Delivery Duration\n(Optional) (if left blank delivery deemed at 0)"},null,{"$f":"'TENDER PACK 2 LNG (Sheet C)'!$D$191","v":"LNG Procurement Tranche Number"},{"$f":"'TENDER PACK 2 LNG (Sheet C)'!$F$191","v":"Service Quantity (in kWh)"},{"$f":"'TENDER PACK 2 LNG (Sheet C)'!$H$191","v":"Estimated Necessary Delivery LNG Quantity kWh"},"Tranche may only be accepted in full (YES / NO)",{"$f":"'TENDER PACK 2 LNG (Sheet C)'!$L$191","v":"Annual Service Fee (in pence per kWh per annum)"},null,{"$f":"'TENDER PACK 2 LNG (Sheet C)'!$D$204","v":"1 Please quote the Annual Service Fee in pence per kWh per annum. Should the bid be successful, for Sheet C this would be pro-rated into a contractual service fee for 7 months (212 days). Worked Example below:"},{"$f":"'TENDER PACK 2 LNG (Sheet C)'!$D$206","v":"Service Quantity = 10,000,000 kWh\nAnnual Service Fee (in pence per kWh per annum = 1 pence"},{"$f":"'TENDER PACK 2 LNG (Sheet C)'!$D$216","v":"Minimum Inventory "},{"$f":"'TENDER PACK 2 LNG (Sheet C)'!$D$219","v":0},{"$f":"'TENDER PACK 2 LNG (Sheet C)'!$D$222","v":0},{"$f":"'TENDER PACK 2 LNG (Sheet C)'!$D$225","v":0},{"$f":"'TENDER PACK 2 LNG (Sheet C)'!$D$228","v":0},{"$f":"'TENDER PACK 2 LNG (Sheet C)'!#REF!","v":{"$error":"#REF!"}}]
[null,null,null,{"$f":"A4&\".\"&B4&\".\"&C4","v":".."},{"$f":"'TENDER PACK 2 LNG (Sheet C)'!$H$88","v":0},{"$f":"'TENDER PACK 2 LNG (Sheet C)'!$H$90","v":0},{"$f":"'TENDER PACK 2 LNG (Sheet C)'!$H$92","v":0},{"$f":"'TENDER PACK 2 LNG (Sheet C)'!$H$96","v":0},{"$f":"'TENDER PACK 2 LNG (Sheet C)'!$H$97","v":0},{"$f":"'TENDER PACK 2 LNG (Sheet C)'!$H$98","v":0},{"$f":"'TENDER PACK 2 LNG (Sheet C)'!$H$99","v":0},{"$f":"'TENDER PACK 2 LNG (Sheet C)'!$H$100","v":0},{"$f":"'TENDER PACK 2 LNG (Sheet C)'!$H$102","v":0},{"$f":"'TENDER PACK 2 LNG (Sheet C)'!$H$103","v":0},"Yes",{"$f":"'TENDER PACK 2 LNG (Sheet C)'!$H$128","v":0},{"$f":"'TENDER PACK 2 LNG (Sheet C)'!$H$130","v":0},{"$f":"IF('TENDER PACK 2 LNG (Sheet C)'!$Q$137=1,\"Please Select\",IF('TENDER PACK 2 LNG (Sheet C)'!$Q$137=3,\"Capacity Holder of LNG Importation with Storage\",IF('TENDER PACK 2 LNG (Sheet C)'!$Q$137=2,\"Operator of LNG Importation with Storage\",0)))","v":"Capacity Holder of LNG Importation with Storage"},{"$f":"'TENDER PACK 2 LNG (Sheet C)'!$H$139","v":0},{"$f":"'TENDER PACK 2 LNG (Sheet C)'!$H$166","v":0},{"$f":"'TENDER PACK 2 LNG (Sheet C)'!$H$169","v":0},{"$f":"'TENDER PACK 2 LNG (Sheet C)'!$H$171","v":0},{"$f":"'TENDER PACK 2 LNG (Sheet C)'!$H$173","v":0},{"$f":"'TENDER PACK 2 LNG (Sheet C)'!$H$175","v":0},{"$f":"'TENDER PACK 2 LNG (Sheet C)'!$H$179","v":0},{"$f":"'TENDER PACK 2 LNG (Sheet C)'!$H$181","v":0},{"$f":"IF('TENDER PACK 2 LNG (Sheet C)'!$Q$183=1,\"12\",IF('TENDER PACK 2 LNG (Sheet C)'!$Q$183=2,\"24\",\"UNCHECKED\"))","v":"24"},{"$f":"'TENDER PACK 2 LNG (Sheet C)'!$H$185","v":0},null,{"$f":"'TENDER PACK 2 LNG (Sheet C)'!D192","v":1},{"$f":"'TENDER PACK 2 LNG (Sheet C)'!$F192","v":0},{"$f":"'TENDER PACK 2 LNG (Sheet C)'!$H192","v":0},{"$f":"'TENDER PACK 2 LNG (Sheet C)'!$J192","v":0},{"$f":"'TENDER PACK 2 LNG (Sheet C)'!$L192","v":0},null,{"$f":"'TENDER PACK 2 LNG (Sheet C)'!$H$204","v":0},{"$f":"'TENDER PACK 2 LNG (Sheet C)'!$H$206","v":0},{"$f":"'TENDER PACK 2 LNG (Sheet C)'!$H$216","v":0},{"$f":"'TENDER PACK 2 LNG (Sheet C)'!$H$219","v":0},{"$f":"'TENDER PACK 2 LNG (Sheet C)'!$H$222","v":0},{"$f":"'TENDER PACK 2 LNG (Sheet C)'!$H$225","v":0},{"$f":"'TENDER PACK 2 LNG (Sheet C)'!$H$228","v":0},{"$f":"IF('TENDER PACK 2 LNG (Sheet C)'!#REF!=\"\",\"N\",\"Y\")","v":{"$error":"#REF!"}}]
[null,null,null,null,{"$f":"'TENDER PACK 2 LNG (Sheet C)'!$H$88","v":0},{"$f":"'TENDER PACK 2 LNG (Sheet C)'!$H$90","v":0},{"$f":"'TENDER PACK 2 LNG (Sheet C)'!$H$92","v":0},{"$f":"'TENDER PACK 2 LNG (Sheet C)'!$H$96","v":0},{"$f":"'TENDER PACK 2 LNG (Sheet C)'!$H$97","v":0},{"$f":"'TENDER PACK 2 LNG (Sheet C)'!$H$98","v":0},{"$f":"'TENDER PACK 2 LNG (Sheet C)'!$H$99","v":0},{"$f":"'TENDER PACK 2 LNG (Sheet C)'!$H$100","v":0},{"$f":"'TENDER PACK 2 LNG (Sheet C)'!$H$102","v":0},{"$f":"'TENDER PACK 2 LNG (Sheet C)'!$H$103","v":0},"Yes",{"$f":"'TENDER PACK 2 LNG (Sheet C)'!$H$128","v":0},{"$f":"'TENDER PACK 2 LNG (Sheet C)'!$H$130","v":0},{"$f":"IF('TENDER PACK 2 LNG (Sheet C)'!$Q$137=1,\"Please Select\",IF('TENDER PACK 2 LNG (Sheet C)'!$Q$137=3,\"Capacity Holder of LNG Importation with Storage\",IF('TENDER PACK 2 LNG (Sheet C)'!$Q$137=2,\"Operator of LNG Importation with Storage\",0)))","v":"Capacity Holder of LNG Importation with Storage"},{"$f":"'TENDER PACK 2 LNG (Sheet C)'!$H$139","v":0},{"$f":"'TENDER PACK 2 LNG (Sheet C)'!$H$166","v":0},{"$f":"'TENDER PACK 2 LNG (Sheet C)'!$H$169","v":0},{"$f":"'TENDER PACK 2 LNG (Sheet C)'!$H$171","v":0},{"$f":"'TENDER PACK 2 LNG (Sheet C)'!$H$173","v":0},{"$f":"'TENDER PACK 2 LNG (Sheet C)'!$H$175","v":0},{"$f":"'TENDER PACK 2 LNG (Sheet C)'!$H$179","v":0},{"$f":"'TENDER PACK 2 LNG (Sheet C)'!$H$181","v":0},{"$f":"IF('TENDER PACK 2 LNG (Sheet C)'!$Q$183=1,\"12\",IF('TENDER PACK 2 LNG (Sheet C)'!$Q$183=2,\"24\",\"UNCHECKED\"))","v":"24"},{"$f":"'TENDER PACK 2 LNG (Sheet C)'!$H$185","v":0},null,{"$f":"'TENDER PACK 2 LNG (Sheet C)'!D193","v":2},{"$f":"'TENDER PACK 2 LNG (Sheet C)'!$F193","v":0},{"$f":"'TENDER PACK 2 LNG (Sheet C)'!$H193","v":0},{"$f":"'TENDER PACK 2 LNG (Sheet C)'!$J193","v":0},{"$f":"'TENDER PACK 2 LNG (Sheet C)'!$L193","v":0},null,{"$f":"'TENDER PACK 2 LNG (Sheet C)'!$H$204","v":0},{"$f":"'TENDER PACK 2 LNG (Sheet C)'!$H$206","v":0},{"$f":"'TENDER PACK 2 LNG (Sheet C)'!$H$216","v":0},{"$f":"'TENDER PACK 2 LNG (Sheet C)'!$H$219","v":0},{"$f":"'TENDER PACK 2 LNG (Sheet C)'!$H$222","v":0},{"$f":"'TENDER PACK 2 LNG (Sheet C)'!$H$225","v":0},{"$f":"'TENDER PACK 2 LNG (Sheet C)'!$H$228","v":0},{"$f":"IF('TENDER PACK 2 LNG (Sheet C)'!#REF!=\"\",\"N\",\"Y\")","v":{"$error":"#REF!"}}]
[null,null,null,null,{"$f":"'TENDER PACK 2 LNG (Sheet C)'!$H$88","v":0},{"$f":"'TENDER PACK 2 LNG (Sheet C)'!$H$90","v":0},{"$f":"'TENDER PACK 2 LNG (Sheet C)'!$H$92","v":0},{"$f":"'TENDER PACK 2 LNG (Sheet C)'!$H$96","v":0},{"$f":"'TENDER PACK 2 LNG (Sheet C)'!$H$97","v":0},{"$f":"'TENDER PACK 2 LNG (Sheet C)'!$H$98","v":0},{"$f":"'TENDER PACK 2 LNG (Sheet C)'!$H$99","v":0},{"$f":"'TENDER PACK 2 LNG (Sheet C)'!$H$100","v":0},{"$f":"'TENDER PACK 2 LNG (Sheet C)'!$H$102","v":0},{"$f":"'TENDER PACK 2 LNG (Sheet C)'!$H$103","v":0},"Yes",{"$f":"'TENDER PACK 2 LNG (Sheet C)'!$H$128","v":0},{"$f":"'TENDER PACK 2 LNG (Sheet C)'!$H$130","v":0},{"$f":"IF('TENDER PACK 2 LNG (Sheet C)'!$Q$137=1,\"Please Select\",IF('TENDER PACK 2 LNG (Sheet C)'!$Q$137=3,\"Capacity Holder of LNG Importation with Storage\",IF('TENDER PACK 2 LNG (Sheet C)'!$Q$137=2,\"Operator of LNG Importation with Storage\",0)))","v":"Capacity Holder of LNG Importation with Storage"},{"$f":"'TENDER PACK 2 LNG (Sheet C)'!$H$139","v":0},{"$f":"'TENDER PACK 2 LNG (Sheet C)'!$H$166","v":0},{"$f":"'TENDER PACK 2 LNG (Sheet C)'!$H$169","v":0},{"$f":"'TENDER PACK 2 LNG (Sheet C)'!$H$171","v":0},{"$f":"'TENDER PACK 2 LNG (Sheet C)'!$H$173","v":0},{"$f":"'TENDER PACK 2 LNG (Sheet C)'!$H$175","v":0},{"$f":"'TENDER PACK 2 LNG (Sheet C)'!$H$179","v":0},{"$f":"'TENDER PACK 2 LNG (Sheet C)'!$H$181","v":0},{"$f":"IF('TENDER PACK 2 LNG (Sheet C)'!$Q$183=1,\"12\",IF('TENDER PACK 2 LNG (Sheet C)'!$Q$183=2,\"24\",\"UNCHECKED\"))","v":"24"},{"$f":"'TENDER PACK 2 LNG (Sheet C)'!$H$185","v":0},null,{"$f":"'TENDER PACK 2 LNG (Sheet C)'!D194","v":3},{"$f":"'TENDER PACK 2 LNG (Sheet C)'!$F194","v":0},{"$f":"'TENDER PACK 2 LNG (Sheet C)'!$H194","v":0},{"$f":"'TENDER PACK 2 LNG (Sheet C)'!$J194","v":0},{"$f":"'TENDER PACK 2 LNG (Sheet C)'!$L194","v":0},null,{"$f":"'TENDER PACK 2 LNG (Sheet C)'!$H$204","v":0},{"$f":"'TENDER PACK 2 LNG (Sheet C)'!$H$206","v":0},{"$f":"'TENDER PACK 2 LNG (Sheet C)'!$H$216","v":0},{"$f":"'TENDER PACK 2 LNG (Sheet C)'!$H$219","v":0},{"$f":"'TENDER PACK 2 LNG (Sheet C)'!$H$222","v":0},{"$f":"'TENDER PACK 2 LNG (Sheet C)'!$H$225","v":0},{"$f":"'TENDER PACK 2 LNG (Sheet C)'!$H$228","v":0},{"$f":"IF('TENDER PACK 2 LNG (Sheet C)'!#REF!=\"\",\"N\",\"Y\")","v":{"$error":"#REF!"}}]
[null,null,null,null,{"$f":"'TENDER PACK 2 LNG (Sheet C)'!$H$88","v":0},{"$f":"'TENDER PACK 2 LNG (Sheet C)'!$H$90","v":0},{"$f":"'TENDER PACK 2 LNG (Sheet C)'!$H$92","v":0},{"$f":"'TENDER PACK 2 LNG (Sheet C)'!$H$96","v":0},{"$f":"'TENDER PACK 2 LNG (Sheet C)'!$H$97","v":0},{"$f":"'TENDER PACK 2 LNG (Sheet C)'!$H$98","v":0},{"$f":"'TENDER PACK 2 LNG (Sheet C)'!$H$99","v":0},{"$f":"'TENDER PACK 2 LNG (Sheet C)'!$H$100","v":0},{"$f":"'TENDER PACK 2 LNG (Sheet C)'!$H$102","v":0},{"$f":"'TENDER PACK 2 LNG (Sheet C)'!$H$103","v":0},"Yes",{"$f":"'TENDER PACK 2 LNG (Sheet C)'!$H$128","v":0},{"$f":"'TENDER PACK 2 LNG (Sheet C)'!$H$130","v":0},{"$f":"IF('TENDER PACK 2 LNG (Sheet C)'!$Q$137=1,\"Please Select\",IF('TENDER PACK 2 LNG (Sheet C)'!$Q$137=3,\"Capacity Holder of LNG Importation with Storage\",IF('TENDER PACK 2 LNG (Sheet C)'!$Q$137=2,\"Operator of LNG Importation with Storage\",0)))","v":"Capacity Holder of LNG Importation with Storage"},{"$f":"'TENDER PACK 2 LNG (Sheet C)'!$H$139","v":0},{"$f":"'TENDER PACK 2 LNG (Sheet C)'!$H$166","v":0},{"$f":"'TENDER PACK 2 LNG (Sheet C)'!$H$169","v":0},{"$f":"'TENDER PACK 2 LNG (Sheet C)'!$H$171","v":0},{"$f":"'TENDER PACK 2 LNG (Sheet C)'!$H$173","v":0},{"$f":"'TENDER PACK 2 LNG (Sheet C)'!$H$175","v":0},{"$f":"'TENDER PACK 2 LNG (Sheet C)'!$H$179","v":0},{"$f":"'TENDER PACK 2 LNG (Sheet C)'!$H$181","v":0},{"$f":"IF('TENDER PACK 2 LNG (Sheet C)'!$Q$183=1,\"12\",IF('TENDER PACK 2 LNG (Sheet C)'!$Q$183=2,\"24\",\"UNCHECKED\"))","v":"24"},{"$f":"'TENDER PACK 2 LNG (Sheet C)'!$H$185","v":0},null,{"$f":"'TENDER PACK 2 LNG (Sheet C)'!D195","v":4},{"$f":"'TENDER PACK 2 LNG (Sheet C)'!$F195","v":0},{"$f":"'TENDER PACK 2 LNG (Sheet C)'!$H195","v":0},{"$f":"'TENDER PACK 2 LNG (Sheet C)'!$J195","v":0},{"$f":"'TENDER PACK 2 LNG (Sheet C)'!$L195","v":0},null,{"$f":"'TENDER PACK 2 LNG (Sheet C)'!$H$204","v":0},{"$f":"'TENDER PACK 2 LNG (Sheet C)'!$H$206","v":0},{"$f":"'TENDER PACK 2 LNG (Sheet C)'!$H$216","v":0},{"$f":"'TENDER PACK 2 LNG (Sheet C)'!$H$219","v":0},{"$f":"'TENDER PACK 2 LNG (Sheet C)'!$H$222","v":0},{"$f":"'TENDER PACK 2 LNG (Sheet C)'!$H$225","v":0},{"$f":"'TENDER PACK 2 LNG (Sheet C)'!$H$228","v":0},{"$f":"IF('TENDER PACK 2 LNG (Sheet C)'!#REF!=\"\",\"N\",\"Y\")","v":{"$error":"#REF!"}}]
[null,null,null,null,{"$f":"'TENDER PACK 2 LNG (Sheet C)'!$H$88","v":0},{"$f":"'TENDER PACK 2 LNG (Sheet C)'!$H$90","v":0},{"$f":"'TENDER PACK 2 LNG (Sheet C)'!$H$92","v":0},{"$f":"'TENDER PACK 2 LNG (Sheet C)'!$H$96","v":0},{"$f":"'TENDER PACK 2 LNG (Sheet C)'!$H$97","v":0},{"$f":"'TENDER PACK 2 LNG (Sheet C)'!$H$98","v":0},{"$f":"'TENDER PACK 2 LNG (Sheet C)'!$H$99","v":0},{"$f":"'TENDER PACK 2 LNG (Sheet C)'!$H$100","v":0},{"$f":"'TENDER PACK 2 LNG (Sheet C)'!$H$102","v":0},{"$f":"'TENDER PACK 2 LNG (Sheet C)'!$H$103","v":0},"Yes",{"$f":"'TENDER PACK 2 LNG (Sheet C)'!$H$128","v":0},{"$f":"'TENDER PACK 2 LNG (Sheet C)'!$H$130","v":0},{"$f":"IF('TENDER PACK 2 LNG (Sheet C)'!$Q$137=1,\"Please Select\",IF('TENDER PACK 2 LNG (Sheet C)'!$Q$137=3,\"Capacity Holder of LNG Importation with Storage\",IF('TENDER PACK 2 LNG (Sheet C)'!$Q$137=2,\"Operator of LNG Importation with Storage\",0)))","v":"Capacity Holder of LNG Importation with Storage"},{"$f":"'TENDER PACK 2 LNG (Sheet C)'!$H$139","v":0},{"$f":"'TENDER PACK 2 LNG (Sheet C)'!$H$166","v":0},{"$f":"'TENDER PACK 2 LNG (Sheet C)'!$H$169","v":0},{"$f":"'TENDER PACK 2 LNG (Sheet C)'!$H$171","v":0},{"$f":"'TENDER PACK 2 LNG (Sheet C)'!$H$173","v":0},{"$f":"'TENDER PACK 2 LNG (Sheet C)'!$H$175","v":0},{"$f":"'TENDER PACK 2 LNG (Sheet C)'!$H$179","v":0},{"$f":"'TENDER PACK 2 LNG (Sheet C)'!$H$181","v":0},{"$f":"IF('TENDER PACK 2 LNG (Sheet C)'!$Q$183=1,\"12\",IF('TENDER PACK 2 LNG (Sheet C)'!$Q$183=2,\"24\",\"UNCHECKED\"))","v":"24"},{"$f":"'TENDER PACK 2 LNG (Sheet C)'!$H$185","v":0},null,{"$f":"'TENDER PACK 2 LNG (Sheet C)'!D196","v":5},{"$f":"'TENDER PACK 2 LNG (Sheet C)'!$F196","v":0},{"$f":"'TENDER PACK 2 LNG (Sheet C)'!$H196","v":0},{"$f":"'TENDER PACK 2 LNG (Sheet C)'!$J196","v":0},{"$f":"'TENDER PACK 2 LNG (Sheet C)'!$L196","v":0},null,{"$f":"'TENDER PACK 2 LNG (Sheet C)'!$H$204","v":0},{"$f":"'TENDER PACK 2 LNG (Sheet C)'!$H$206","v":0},{"$f":"'TENDER PACK 2 LNG (Sheet C)'!$H$216","v":0},{"$f":"'TENDER PACK 2 LNG (Sheet C)'!$H$219","v":0},{"$f":"'TENDER PACK 2 LNG (Sheet C)'!$H$222","v":0},{"$f":"'TENDER PACK 2 LNG (Sheet C)'!$H$225","v":0},{"$f":"'TENDER PACK 2 LNG (Sheet C)'!$H$228","v":0},{"$f":"IF('TENDER PACK 2 LNG (Sheet C)'!#REF!=\"\",\"N\",\"Y\")","v":{"$error":"#REF!"}}]
[null,null,null,null,{"$f":"'TENDER PACK 2 LNG (Sheet C)'!$H$88","v":0},{"$f":"'TENDER PACK 2 LNG (Sheet C)'!$H$90","v":0},{"$f":"'TENDER PACK 2 LNG (Sheet C)'!$H$92","v":0},{"$f":"'TENDER PACK 2 LNG (Sheet C)'!$H$96","v":0},{"$f":"'TENDER PACK 2 LNG (Sheet C)'!$H$97","v":0},{"$f":"'TENDER PACK 2 LNG (Sheet C)'!$H$98","v":0},{"$f":"'TENDER PACK 2 LNG (Sheet C)'!$H$99","v":0},{"$f":"'TENDER PACK 2 LNG (Sheet C)'!$H$100","v":0},{"$f":"'TENDER PACK 2 LNG (Sheet C)'!$H$102","v":0},{"$f":"'TENDER PACK 2 LNG (Sheet C)'!$H$103","v":0},"Yes",{"$f":"'TENDER PACK 2 LNG (Sheet C)'!$H$128","v":0},{"$f":"'TENDER PACK 2 LNG (Sheet C)'!$H$130","v":0},{"$f":"IF('TENDER PACK 2 LNG (Sheet C)'!$Q$137=1,\"Please Select\",IF('TENDER PACK 2 LNG (Sheet C)'!$Q$137=3,\"Capacity Holder of LNG Importation with Storage\",IF('TENDER PACK 2 LNG (Sheet C)'!$Q$137=2,\"Operator of LNG Importation with Storage\",0)))","v":"Capacity Holder of LNG Importation with Storage"},{"$f":"'TENDER PACK 2 LNG (Sheet C)'!$H$139","v":0},{"$f":"'TENDER PACK 2 LNG (Sheet C)'!$H$166","v":0},{"$f":"'TENDER PACK 2 LNG (Sheet C)'!$H$169","v":0},{"$f":"'TENDER PACK 2 LNG (Sheet C)'!$H$171","v":0},{"$f":"'TENDER PACK 2 LNG (Sheet C)'!$H$173","v":0},{"$f":"'TENDER PACK 2 LNG (Sheet C)'!$H$175","v":0},{"$f":"'TENDER PACK 2 LNG (Sheet C)'!$H$179","v":0},{"$f":"'TENDER PACK 2 LNG (Sheet C)'!$H$181","v":0},{"$f":"IF('TENDER PACK 2 LNG (Sheet C)'!$Q$183=1,\"12\",IF('TENDER PACK 2 LNG (Sheet C)'!$Q$183=2,\"24\",\"UNCHECKED\"))","v":"24"},{"$f":"'TENDER PACK 2 LNG (Sheet C)'!$H$185","v":0},null,{"$f":"'TENDER PACK 2 LNG (Sheet C)'!D197","v":6},{"$f":"'TENDER PACK 2 LNG (Sheet C)'!$F197","v":0},{"$f":"'TENDER PACK 2 LNG (Sheet C)'!$H197","v":0},{"$f":"'TENDER PACK 2 LNG (Sheet C)'!$J197","v":0},{"$f":"'TENDER PACK 2 LNG (Sheet C)'!$L197","v":0},null,{"$f":"'TENDER PACK 2 LNG (Sheet C)'!$H$204","v":0},{"$f":"'TENDER PACK 2 LNG (Sheet C)'!$H$206","v":0},{"$f":"'TENDER PACK 2 LNG (Sheet C)'!$H$216","v":0},{"$f":"'TENDER PACK 2 LNG (Sheet C)'!$H$219","v":0},{"$f":"'TENDER PACK 2 LNG (Sheet C)'!$H$222","v":0},{"$f":"'TENDER PACK 2 LNG (Sheet C)'!$H$225","v":0},{"$f":"'TENDER PACK 2 LNG (Sheet C)'!$H$228","v":0},{"$f":"IF('TENDER PACK 2 LNG (Sheet C)'!#REF!=\"\",\"N\",\"Y\")","v":{"$error":"#REF!"}}]
[null,null,null,null,{"$f":"'TENDER PACK 2 LNG (Sheet C)'!$H$88","v":0},{"$f":"'TENDER PACK 2 LNG (Sheet C)'!$H$90","v":0},{"$f":"'TENDER PACK 2 LNG (Sheet C)'!$H$92","v":0},{"$f":"'TENDER PACK 2 LNG (Sheet C)'!$H$96","v":0},{"$f":"'TENDER PACK 2 LNG (Sheet C)'!$H$97","v":0},{"$f":"'TENDER PACK 2 LNG (Sheet C)'!$H$98","v":0},{"$f":"'TENDER PACK 2 LNG (Sheet C)'!$H$99","v":0},{"$f":"'TENDER PACK 2 LNG (Sheet C)'!$H$100","v":0},{"$f":"'TENDER PACK 2 LNG (Sheet C)'!$H$102","v":0},{"$f":"'TENDER PACK 2 LNG (Sheet C)'!$H$103","v":0},"Yes",{"$f":"'TENDER PACK 2 LNG (Sheet C)'!$H$128","v":0},{"$f":"'TENDER PACK 2 LNG (Sheet C)'!$H$130","v":0},{"$f":"IF('TENDER PACK 2 LNG (Sheet C)'!$Q$137=1,\"Please Select\",IF('TENDER PACK 2 LNG (Sheet C)'!$Q$137=3,\"Capacity Holder of LNG Importation with Storage\",IF('TENDER PACK 2 LNG (Sheet C)'!$Q$137=2,\"Operator of LNG Importation with Storage\",0)))","v":"Capacity Holder of LNG Importation with Storage"},{"$f":"'TENDER PACK 2 LNG (Sheet C)'!$H$139","v":0},{"$f":"'TENDER PACK 2 LNG (Sheet C)'!$H$166","v":0},{"$f":"'TENDER PACK 2 LNG (Sheet C)'!$H$169","v":0},{"$f":"'TENDER PACK 2 LNG (Sheet C)'!$H$171","v":0},{"$f":"'TENDER PACK 2 LNG (Sheet C)'!$H$173","v":0},{"$f":"'TENDER PACK 2 LNG (Sheet C)'!$H$175","v":0},{"$f":"'TENDER PACK 2 LNG (Sheet C)'!$H$179","v":0},{"$f":"'TENDER PACK 2 LNG (Sheet C)'!$H$181","v":0},{"$f":"IF('TENDER PACK 2 LNG (Sheet C)'!$Q$183=1,\"12\",IF('TENDER PACK 2 LNG (Sheet C)'!$Q$183=2,\"24\",\"UNCHECKED\"))","v":"24"},{"$f":"'TENDER PACK 2 LNG (Sheet C)'!$H$185","v":0},null,{"$f":"'TENDER PACK 2 LNG (Sheet C)'!D198","v":7},{"$f":"'TENDER PACK 2 LNG (Sheet C)'!$F198","v":0},{"$f":"'TENDER PACK 2 LNG (Sheet C)'!$H198","v":0},{"$f":"'TENDER PACK 2 LNG (Sheet C)'!$J198","v":0},{"$f":"'TENDER PACK 2 LNG (Sheet C)'!$L198","v":0},null,{"$f":"'TENDER PACK 2 LNG (Sheet C)'!$H$204","v":0},{"$f":"'TENDER PACK 2 LNG (Sheet C)'!$H$206","v":0},{"$f":"'TENDER PACK 2 LNG (Sheet C)'!$H$216","v":0},{"$f":"'TENDER PACK 2 LNG (Sheet C)'!$H$219","v":0},{"$f":"'TENDER PACK 2 LNG (Sheet C)'!$H$222","v":0},{"$f":"'TENDER PACK 2 LNG (Sheet C)'!$H$225","v":0},{"$f":"'TENDER PACK 2 LNG (Sheet C)'!$H$228","v":0},{"$f":"IF('TENDER PACK 2 LNG (Sheet C)'!#REF!=\"\",\"N\",\"Y\")","v":{"$error":"#REF!"}}]
[null,null,null,null,{"$f":"'TENDER PACK 2 LNG (Sheet C)'!$H$88","v":0},{"$f":"'TENDER PACK 2 LNG (Sheet C)'!$H$90","v":0},{"$f":"'TENDER PACK 2 LNG (Sheet C)'!$H$92","v":0},{"$f":"'TENDER PACK 2 LNG (Sheet C)'!$H$96","v":0},{"$f":"'TENDER PACK 2 LNG (Sheet C)'!$H$97","v":0},{"$f":"'TENDER PACK 2 LNG (Sheet C)'!$H$98","v":0},{"$f":"'TENDER PACK 2 LNG (Sheet C)'!$H$99","v":0},{"$f":"'TENDER PACK 2 LNG (Sheet C)'!$H$100","v":0},{"$f":"'TENDER PACK 2 LNG (Sheet C)'!$H$102","v":0},{"$f":"'TENDER PACK 2 LNG (Sheet C)'!$H$103","v":0},"Yes",{"$f":"'TENDER PACK 2 LNG (Sheet C)'!$H$128","v":0},{"$f":"'TENDER PACK 2 LNG (Sheet C)'!$H$130","v":0},{"$f":"IF('TENDER PACK 2 LNG (Sheet C)'!$Q$137=1,\"Please Select\",IF('TENDER PACK 2 LNG (Sheet C)'!$Q$137=3,\"Capacity Holder of LNG Importation with Storage\",IF('TENDER PACK 2 LNG (Sheet C)'!$Q$137=2,\"Operator of LNG Importation with Storage\",0)))","v":"Capacity Holder of LNG Importation with Storage"},{"$f":"'TENDER PACK 2 LNG (Sheet C)'!$H$139","v":0},{"$f":"'TENDER PACK 2 LNG (Sheet C)'!$H$166","v":0},{"$f":"'TENDER PACK 2 LNG (Sheet C)'!$H$169","v":0},{"$f":"'TENDER PACK 2 LNG (Sheet C)'!$H$171","v":0},{"$f":"'TENDER PACK 2 LNG (Sheet C)'!$H$173","v":0},{"$f":"'TENDER PACK 2 LNG (Sheet C)'!$H$175","v":0},{"$f":"'TENDER PACK 2 LNG (Sheet C)'!$H$179","v":0},{"$f":"'TENDER PACK 2 LNG (Sheet C)'!$H$181","v":0},{"$f":"IF('TENDER PACK 2 LNG (Sheet C)'!$Q$183=1,\"12\",IF('TENDER PACK 2 LNG (Sheet C)'!$Q$183=2,\"24\",\"UNCHECKED\"))","v":"24"},{"$f":"'TENDER PACK 2 LNG (Sheet C)'!$H$185","v":0},null,{"$f":"'TENDER PACK 2 LNG (Sheet C)'!D199","v":8},{"$f":"'TENDER PACK 2 LNG (Sheet C)'!$F199","v":0},{"$f":"'TENDER PACK 2 LNG (Sheet C)'!$H199","v":0},{"$f":"'TENDER PACK 2 LNG (Sheet C)'!$J199","v":0},{"$f":"'TENDER PACK 2 LNG (Sheet C)'!$L199","v":0},null,{"$f":"'TENDER PACK 2 LNG (Sheet C)'!$H$204","v":0},{"$f":"'TENDER PACK 2 LNG (Sheet C)'!$H$206","v":0},{"$f":"'TENDER PACK 2 LNG (Sheet C)'!$H$216","v":0},{"$f":"'TENDER PACK 2 LNG (Sheet C)'!$H$219","v":0},{"$f":"'TENDER PACK 2 LNG (Sheet C)'!$H$222","v":0},{"$f":"'TENDER PACK 2 LNG (Sheet C)'!$H$225","v":0},{"$f":"'TENDER PACK 2 LNG (Sheet C)'!$H$228","v":0},{"$f":"IF('TENDER PACK 2 LNG (Sheet C)'!#REF!=\"\",\"N\",\"Y\")","v":{"$error":"#REF!"}}]
[null,null,null,null,{"$f":"'TENDER PACK 2 LNG (Sheet C)'!$H$88","v":0},{"$f":"'TENDER PACK 2 LNG (Sheet C)'!$H$90","v":0},{"$f":"'TENDER PACK 2 LNG (Sheet C)'!$H$92","v":0},{"$f":"'TENDER PACK 2 LNG (Sheet C)'!$H$96","v":0},{"$f":"'TENDER PACK 2 LNG (Sheet C)'!$H$97","v":0},{"$f":"'TENDER PACK 2 LNG (Sheet C)'!$H$98","v":0},{"$f":"'TENDER PACK 2 LNG (Sheet C)'!$H$99","v":0},{"$f":"'TENDER PACK 2 LNG (Sheet C)'!$H$100","v":0},{"$f":"'TENDER PACK 2 LNG (Sheet C)'!$H$102","v":0},{"$f":"'TENDER PACK 2 LNG (Sheet C)'!$H$103","v":0},"Yes",{"$f":"'TENDER PACK 2 LNG (Sheet C)'!$H$128","v":0},{"$f":"'TENDER PACK 2 LNG (Sheet C)'!$H$130","v":0},{"$f":"IF('TENDER PACK 2 LNG (Sheet C)'!$Q$137=1,\"Please Select\",IF('TENDER PACK 2 LNG (Sheet C)'!$Q$137=3,\"Capacity Holder of LNG Importation with Storage\",IF('TENDER PACK 2 LNG (Sheet C)'!$Q$137=2,\"Operator of LNG Importation with Storage\",0)))","v":"Capacity Holder of LNG Importation with Storage"},{"$f":"'TENDER PACK 2 LNG (Sheet C)'!$H$139","v":0},{"$f":"'TENDER PACK 2 LNG (Sheet C)'!$H$166","v":0},{"$f":"'TENDER PACK 2 LNG (Sheet C)'!$H$169","v":0},{"$f":"'TENDER PACK 2 LNG (Sheet C)'!$H$171","v":0},{"$f":"'TENDER PACK 2 LNG (Sheet C)'!$H$173","v":0},{"$f":"'TENDER PACK 2 LNG (Sheet C)'!$H$175","v":0},{"$f":"'TENDER PACK 2 LNG (Sheet C)'!$H$179","v":0},{"$f":"'TENDER PACK 2 LNG (Sheet C)'!$H$181","v":0},{"$f":"IF('TENDER PACK 2 LNG (Sheet C)'!$Q$183=1,\"12\",IF('TENDER PACK 2 LNG (Sheet C)'!$Q$183=2,\"24\",\"UNCHECKED\"))","v":"24"},{"$f":"'TENDER PACK 2 LNG (Sheet C)'!$H$185","v":0},null,{"$f":"'TENDER PACK 2 LNG (Sheet C)'!D200","v":9},{"$f":"'TENDER PACK 2 LNG (Sheet C)'!$F200","v":0},{"$f":"'TENDER PACK 2 LNG (Sheet C)'!$H200","v":0},{"$f":"'TENDER PACK 2 LNG (Sheet C)'!$J200","v":0},{"$f":"'TENDER PACK 2 LNG (Sheet C)'!$L200","v":0},null,{"$f":"'TENDER PACK 2 LNG (Sheet C)'!$H$204","v":0},{"$f":"'TENDER PACK 2 LNG (Sheet C)'!$H$206","v":0},{"$f":"'TENDER PACK 2 LNG (Sheet C)'!$H$216","v":0},{"$f":"'TENDER PACK 2 LNG (Sheet C)'!$H$219","v":0},{"$f":"'TENDER PACK 2 LNG (Sheet C)'!$H$222","v":0},{"$f":"'TENDER PACK 2 LNG (Sheet C)'!$H$225","v":0},{"$f":"'TENDER PACK 2 LNG (Sheet C)'!$H$228","v":0},{"$f":"IF('TENDER PACK 2 LNG (Sheet C)'!#REF!=\"\",\"N\",\"Y\")","v":{"$error":"#REF!"}}]
[null,null,null,null,{"$f":"'TENDER PACK 2 LNG (Sheet C)'!$H$88","v":0},{"$f":"'TENDER PACK 2 LNG (Sheet C)'!$H$90","v":0},{"$f":"'TENDER PACK 2 LNG (Sheet C)'!$H$92","v":0},{"$f":"'TENDER PACK 2 LNG (Sheet C)'!$H$96","v":0},{"$f":"'TENDER PACK 2 LNG (Sheet C)'!$H$97","v":0},{"$f":"'TENDER PACK 2 LNG (Sheet C)'!$H$98","v":0},{"$f":"'TENDER PACK 2 LNG (Sheet C)'!$H$99","v":0},{"$f":"'TENDER PACK 2 LNG (Sheet C)'!$H$100","v":0},{"$f":"'TENDER PACK 2 LNG (Sheet C)'!$H$102","v":0},{"$f":"'TENDER PACK 2 LNG (Sheet C)'!$H$103","v":0},"Yes",{"$f":"'TENDER PACK 2 LNG (Sheet C)'!$H$128","v":0},{"$f":"'TENDER PACK 2 LNG (Sheet C)'!$H$130","v":0},{"$f":"IF('TENDER PACK 2 LNG (Sheet C)'!$Q$137=1,\"Please Select\",IF('TENDER PACK 2 LNG (Sheet C)'!$Q$137=3,\"Capacity Holder of LNG Importation with Storage\",IF('TENDER PACK 2 LNG (Sheet C)'!$Q$137=2,\"Operator of LNG Importation with Storage\",0)))","v":"Capacity Holder of LNG Importation with Storage"},{"$f":"'TENDER PACK 2 LNG (Sheet C)'!$H$139","v":0},{"$f":"'TENDER PACK 2 LNG (Sheet C)'!$H$166","v":0},{"$f":"'TENDER PACK 2 LNG (Sheet C)'!$H$169","v":0},{"$f":"'TENDER PACK 2 LNG (Sheet C)'!$H$171","v":0},{"$f":"'TENDER PACK 2 LNG (Sheet C)'!$H$173","v":0},{"$f":"'TENDER PACK 2 LNG (Sheet C)'!$H$175","v":0},{"$f":"'TENDER PACK 2 LNG (Sheet C)'!$H$179","v":0},{"$f":"'TENDER PACK 2 LNG (Sheet C)'!$H$181","v":0},{"$f":"IF('TENDER PACK 2 LNG (Sheet C)'!$Q$183=1,\"12\",IF('TENDER PACK 2 LNG (Sheet C)'!$Q$183=2,\"24\",\"UNCHECKED\"))","v":"24"},{"$f":"'TENDER PACK 2 LNG (Sheet C)'!$H$185","v":0},null,{"$f":"'TENDER PACK 2 LNG (Sheet C)'!D201","v":10},{"$f":"'TENDER PACK 2 LNG (Sheet C)'!$F201","v":0},{"$f":"'TENDER PACK 2 LNG (Sheet C)'!$H201","v":0},{"$f":"'TENDER PACK 2 LNG (Sheet C)'!$J201","v":0},{"$f":"'TENDER PACK 2 LNG (Sheet C)'!$L201","v":0},null,{"$f":"'TENDER PACK 2 LNG (Sheet C)'!$H$204","v":0},{"$f":"'TENDER PACK 2 LNG (Sheet C)'!$H$206","v":0},{"$f":"'TENDER PACK 2 LNG (Sheet C)'!$H$216","v":0},{"$f":"'TENDER PACK 2 LNG (Sheet C)'!$H$219","v":0},{"$f":"'TENDER PACK 2 LNG (Sheet C)'!$H$222","v":0},{"$f":"'TENDER PACK 2 LNG (Sheet C)'!$H$225","v":0},{"$f":"'TENDER PACK 2 LNG (Sheet C)'!$H$228","v":0},{"$f":"IF('TENDER PACK 2 LNG (Sheet C)'!#REF!=\"\",\"N\",\"Y\")","v":{"$error":"#REF!"}}]